Cogmind - Beta 17.1 @@@ ROGUE MODE // 2026.08.28 @ 14:57:52 Player: JuustuToug Result: Destroyed by Immortal with Experimental Jetlance Performance ------------- Evolutions (7) 3500 Regions Visited (34) 6800 Robots Destroyed (478) 2390 Value Destroyed (17491) 17491 Prototype IDs (74) 1480 Alien Tech Used (4) 800 Bonus (9303) 9303 TOTAL SCORE: 41764 Bonus ------- High Alert Combat Kills 904 Follower Combat Kills 3234 Hunted by Unchained 1000 Network Hubs Disabled 800 Met Imprinter 300 Destroyed Z-Imprinter 1000 Met Zhirov 300 Met Warlord at Base 500 MAIN.C Attacked Warlord 500 MAIN.C Attacked Proxy Base 500 Built Enhanced Grunts 300 A7 Reached Mainframe 300 Met R17 at Cetus 500 Met R17 at Research 2000 Friendly Fire -2835 Cogmind --------- Core Integrity 0/1300 Matter 215/300 Energy 1189/2700 System Corruption 7% Temperature Cool (0) Movement Walking (116) Location -3/Protoforge Parts ------- > --- POWER (2) -------- Hybrid Graviton Reactor Hybrid Graviton Reactor > --- PROPULSION (5) --- Armored Leg Advanced Myomer Leg Advanced Myomer Leg Advanced Myomer Leg > --- UTILITY (10) ----- Large Storage Unit Experimental Optical Array Advanced Signal Interpreter Experimental Targeting Computer Concept Antimissile System Improved Hacking Suite Experimental System Purifier > --- WEAPON (4) ------- HERF Cannon Vortex Driver Concept XC Strikerail Concept XC Strikerail > --- INVENTORY (15) --- Particle Reactor Hybrid Graviton Reactor Advanced Energy Well (500) Improved Matter Compressor (70) Experimental Sensor Array Seismic Detector Crosscalibrator Transdimensional Reconstructor Terrabomb Quantum Rifle Nova Cannon Railgun Railgun Long-range Missile Launcher Peak State ------------ > --- POWER ------------ Hybrid Graviton Reactor Hybrid Graviton Reactor > --- PROPULSION ------- Armored Leg Advanced VSS Leg Advanced Myomer Leg Advanced Myomer Leg Advanced Myomer Leg > --- UTILITY ---------- Large Storage Unit Experimental Optical Array Experimental Sensor Array Advanced Signal Interpreter Experimental Targeting Computer Concept Recoil Nullifier Concept Antimissile System Improved Hacking Suite Experimental System Purifier Crosscalibrator > --- WEAPON ----------- Quantum Rifle Vortex Driver Concept XC Strikerail Concept XC Strikerail > --- INVENTORY -------- Particle Reactor Hybrid Graviton Reactor Advanced Energy Well Improved Matter Compressor Seismic Detector Transdimensional Reconstructor Terrabomb HERF Cannon Nova Cannon Railgun Railgun Long-range Missile Launcher [Rating: 182] Favorites ----------- Power Heavy Ion Engine Engine Heavy Ion Engine Power Core Light Nuclear Core Reactor Antimatter Reactor Propulsion Carbon-fiber Leg Treads Light Treads Leg Carbon-fiber Leg Hover Unit Cooled Antigrav System Flight Unit Improved Diametric Drive Utility High-capacity Storage Unit Device Experimental Sensor Array Storage High-capacity Storage Unit Processor Advanced Signal Interpreter Hackware Hacking Suite Protection Centrium Medium Armor Plating Artifact Phase Armor Weapon Plasma Cannon Energy Gun Improved Medium Laser Energy Cannon Plasma Cannon Ballistic Gun Railgun Ballistic Cannon Antimatter Cannon Launcher Heavy Missile Launcher Special Weapon Improved Plasma Cutter Impact Weapon Power Maul Slashing Weapon Power Sword Piercing Weapon CR-A16's Pointy Stick Special Melee Weapon Datajack Build | -11 -10 -10 -9 -9 -9 -8 -8 -8 -7 -7 -7 -7 -7 -6 -6 -6 -6 -6 -6 -6 -6 -5 -5 -5 -5 -4 -4 -4 -4 -4 -3 -3 -3 -3 ------- Run | Yrd Mat Min Mat Min Exi Min Mat Sto Fac Low Low Zio Dee Pro Fac Was Fac Ext Cet Arc Hub Fac Upp Upp War Pro Fac Upp Upp Zhi Pro Res Qua Frg Slots Evolved 14 | . . . 2 . . . 2 . 2 . . . . . 2 . . . . . . 2 . . . . 2 . . . . 2 . . Power 1 | . . . . . . . . . . . . . . . . . . . . . . 1 . . . . . . . . . . . . Propulsion 3 | . . . 1 . . . 1 . 1 . . . . . . . . . . . . . . . . . . . . . . . . . Utility 8 | . . . . . . . 1 . 1 . . . . . 2 . . . . . . 1 . . . . 2 . . . . 1 . . Weapon 2 | . . . 1 . . . . . . . . . . . . . . . . . . . . . . . . . . . . 1 . . Parts Attached 337 | 6 15 6 24 4 1 . 31 14 7 4 3 3 8 14 10 1 26 26 8 2 9 14 2 4 25 3 10 4 3 3 6 15 9 17 Power 38 | 1 1 1 2 . . . 1 2 1 . . . 1 1 1 . 3 2 4 . 1 1 . 2 1 1 2 . 1 . 3 3 . 2 Engine 18 | 1 1 1 2 . . . 1 2 1 . . . . 1 . . 1 2 1 . 1 . . 1 . . 1 . . . 1 . . . Core 6 | . . . . . . . . . . . . . . . 1 . 2 . 1 . . 1 . 1 . . . . . . . . . . Reactor 14 | . . . . . . . . . . . . . 1 . . . . . 2 . . . . . 1 1 1 . 1 . 2 3 . 2 Propulsion 92 | 2 2 1 6 2 1 . 10 6 3 1 2 . 2 5 . . 8 11 . . 4 4 . 1 8 . . . 1 2 2 1 3 4 Treads 9 | 2 1 1 5 . . . . . . . . . . . . . . . . . . . . . . . . . . . . . . . Leg 80 | . 1 . 1 2 1 . 10 6 3 1 2 . 2 5 . . 8 11 . . 4 4 . 1 6 . . . 1 2 2 1 3 3 Wheel . | . . . . . . . . . . . . . . . . . . . . . . . . . . . . . . . . . . . Hover 2 | . . . . . . . . . . . . . . . . . . . . . . . . . 1 . . . . . . . . 1 Flight 1 | . . . . . . . . . . . . . . . . . . . . . . . . . 1 . . . . . . . . . Utility 109 | 1 8 1 4 1 . . 7 1 2 2 . 1 2 3 8 1 7 8 3 2 3 7 . 1 7 . 6 3 . 1 1 6 5 7 Device 53 | . 7 1 2 1 . . 4 . . 1 . . 1 1 3 . 4 4 . 2 1 3 . 1 4 . 2 2 . . 1 4 . 4 Storage 8 | 1 1 . 2 . . . . . . . . . 1 . . . . . . . 2 . . . . . . . . 1 . . . . Processor 20 | . . . . . . . 1 . . 1 . 1 . . 3 . 1 . . . . 3 . . 2 . 2 1 . . . 1 1 3 Hackware 7 | . . . . . . . . . 1 . . . . . 1 1 2 . . . . 1 . . . . . . . . . . 1 . Protection 19 | . . . . . . . 2 1 1 . . . . 2 1 . . 4 3 . . . . . 1 . 2 . . . . 1 1 . Artifact 2 | . . . . . . . . . . . . . . . . . . . . . . . . . . . . . . . . . 2 . Weapon 98 | 2 4 3 12 1 . . 13 5 1 1 1 2 3 5 1 . 8 5 1 . 1 2 2 . 9 2 2 1 1 . . 5 1 4 Energy Gun 25 | 1 1 1 9 . . . 3 1 . . . . 2 1 . . 3 . . . . . . . 1 . . . . . . 2 . . Energy Cannon 21 | . . . . . . . 1 2 1 . . 1 1 3 . . 4 . . . . 1 1 . 2 1 1 . . . . . 1 1 Ballistic Gun 24 | 1 2 . 1 . . . 7 2 . . . . . . . . . . . . . . . . 3 . 1 . 1 . . 3 . 3 Ballistic Cannon 2 | . . . . . . . . . . 1 . . . . 1 . . . . . . . . . . . . . . . . . . . Launcher 10 | . 1 1 1 1 . . 2 . . . . . . . . . 1 . . . 1 . . . . 1 . 1 . . . . . . Special Weapon 2 | . . . . . . . . . . . . . . . . . . . . . . . . . 2 . . . . . . . . . Impact Weapon 4 | . . . 1 . . . . . . . 1 . . . . . . 1 . . . . 1 . . . . . . . . . . . Slashing Weapon 8 | . . . . . . . . . . . . . . 1 . . . 4 1 . . 1 . . 1 . . . . . . . . . Piercing Weapon 1 | . . . . . . . . . . . . 1 . . . . . . . . . . . . . . . . . . . . . . Special Melee Weapon 1 | . . 1 . . . . . . . . . . . . . . . . . . . . . . . . . . . . . . . . Unidentified Prototypes 52 | . . 1 2 . . . 2 . 1 . . . 5 . 2 1 1 . 1 . 3 1 . . 14 . 2 . . 3 . 2 2 9 Corrupted Parts 7 | . . . . . . . . . . . . . 1 1 . . . . . . . . . 1 . . . . 1 . 3 . . . System Corruption 42 | . . . . . . . . . . . . . 3 1 . . . . . . . . . 6 . . . . 7 . 25 . . . Parts Lost 52 | . 3 . . 2 . 2 2 2 . . . . . 1 . 4 6 3 . . 4 1 . 2 . 1 1 . 3 . 1 . 1 13 Power 9 | . . . . . . 1 . . . . . . . 1 . 1 1 . . . . . . 1 . 1 1 . . . 1 . . 1 Propulsion 16 | . 2 . . 2 . . . . . . . . . . . 2 3 1 . . 2 . . . . . . . 1 . . . . 3 Utility 15 | . 1 . . . . . 1 1 . . . . . . . 1 1 . . . 1 . . 1 . . . . 1 . . . 1 6 Weapon 12 | . . . . . . 1 1 1 . . . . . . . . 1 2 . . 1 1 . . . . . . 1 . . . . 3 Highest Loss Streak 8 | . 2 . . 1 . 1 1 2 . . . . . 1 . 4 3 3 . . 3 1 . 2 . 1 1 . 2 . 1 . 1 8 To Critical Strikes 1 | . . . . . . . . . . . . . . . . . . . . . . . . . . . . . . . . . . 1 Average Backups 15 | 1 10 14 16 18 17 18 19 19 19 19 19 20 19 19 19 15 4 5 4 5 9 12 15 14 14 13 14 14 13 14 14 14 14 14 Power . | . 1 . . 1 1 . 1 . 1 1 1 1 1 . 1 . . . . . . . 1 . . . . . 1 1 . . 1 1 Propulsion 3 | . . 1 4 5 3 4 3 4 4 5 4 5 4 4 3 2 . . . . 1 2 3 3 2 2 2 2 2 2 3 3 2 . Utility 5 | . 4 5 5 6 7 8 9 9 7 7 7 7 8 8 8 5 3 3 3 3 4 4 3 3 3 5 5 5 4 4 3 4 4 3 Weapon 5 | . 4 6 5 6 6 5 5 5 5 6 7 7 6 6 6 6 1 1 1 2 2 3 5 6 6 6 6 6 5 5 5 4 5 5 Tool/Special . | . . . . . . . . . . . . . . . . . . . . . . . . . . . . . . . . . . . Unused Backups 71 | . 4 1 11 . 1 . 12 3 2 1 . 1 . 1 3 8 . 1 . . . 2 1 . 6 . 1 . 1 2 1 1 1 6 Power 9 | . . . . . . . 2 . . 1 . . . . 1 . . . . . . . . . 2 . . . . . . . 1 2 Propulsion 4 | . . . . . . . . 2 . . . . . . . 1 . . . . . . . . . . . . . . 1 . . . Utility 24 | . 2 . 5 . 1 . 4 1 1 . . . . . 1 3 . . . . . 1 1 . 1 . . . . 2 . . . 1 Weapon 29 | . 2 1 6 . . . 6 . 1 . . 1 . 1 1 4 . 1 . . . . . . 3 . 1 . . . . . . 1 Tool/Special 5 | . . . . . . . . . . . . . . . . . . . . . . 1 . . . . . . 1 . . 1 . 2 Average Slot Usage (%) 98 | . 97 100 99 99 100 99 99 98 99 100 98 98 99 99 99 83 88 94 100 97 95 96 100 99 96 93 98 99 99 87 100 95 96 91 Engine 6 | . 14 14 11 11 11 10 9 8 7 7 7 7 7 6 1 . . 6 1 . . 4 5 9 1 . . 5 3 . . . . . Reactor 1 | . . . . . . . . . . . . . . . . . . . 4 6 6 . . . 3 4 8 5 6 10 9 9 9 8 Treads 5 | . 19 21 32 23 2 . . . . . . . . . . . . . . . . . . . . . . . . . . . . . Leg 26 | . 8 6 . 9 30 33 35 36 37 38 36 38 38 38 33 29 25 31 33 33 32 28 29 29 29 29 26 26 25 26 26 23 23 22 Device 10 | . 12 14 11 11 11 11 9 9 7 7 7 6 6 6 12 6 16 12 13 10 8 6 5 5 9 11 10 14 10 9 10 12 9 9 Storage 7 | . 14 14 11 11 11 11 9 9 6 7 7 7 7 7 6 4 . . . . 3 5 5 5 5 5 5 5 5 5 5 4 4 4 Processor 7 | . . . . . . . 2 . . 6 7 7 7 7 8 17 15 15 13 13 13 11 11 11 11 11 14 15 15 15 15 14 19 17 Hackware 2 | . . . . . . . . . 6 . . . . . 3 . 5 6 6 6 6 9 11 10 5 5 5 5 5 5 5 4 4 4 Protection 4 | . . . . . . . 5 9 7 7 7 7 7 7 6 3 . 3 6 6 6 5 5 5 6 5 9 5 9 10 10 4 2 . Energy Gun 8 | . 20 27 30 32 33 32 5 3 . . . . . . . . 4 . . . . . . . . . . . . . . 5 8 5 Energy Cannon 6 | . . . . . . . 4 17 15 15 15 15 22 22 19 16 12 5 . . . . 3 1 . . 1 4 4 1 3 . . 3 Ballistic Gun 4 | . 7 . 1 . . . 16 4 5 6 3 . . . . . . . . . . . . . 3 16 13 10 10 2 11 12 8 6 Slashing Weapon 2 | . . . . . . . . . . . . . . . . . . 9 19 20 16 14 12 14 13 . . . . . . . . . Peak Build Rating 182 | 6 10 17 22 23 22 23 38 39 48 53 55 56 61 66 79 79 77 87 80 85 88 92 91 92 137 123 145 141 139 141 143 157 177 182 Average Rating 65 | 4 8 9 17 21 21 21 30 35 43 51 52 54 56 63 76 63 65 70 78 80 80 85 90 90 109 122 138 139 134 122 140 148 167 165 On Entrance 72 | . 6 8 10 21 21 22 21 33 36 46 53 55 55 57 66 76 40 72 70 80 85 62 90 89 91 134 123 138 139 139 141 141 151 171 Avg Prop Armor Cover (%) 9 | . 8 8 . 10 13 . . 4 . . . . . . . . 11 . . . . . . . . . . . . . . 3 . . Naked Turns . | . . . . . . . . . . . . . . . . . . . . . . . . . . . . . . . . . . . Heaviest Build 133 | 12 32 30 59 59 58 59 67 70 78 82 82 82 83 83 85 81 41 41 40 40 58 79 60 74 101 101 103 79 96 96 100 99 124 133 Greatest Support 143 | 40 40 40 60 60 36 36 54 68 82 82 82 82 82 95 95 93 67 108 94 94 99 91 87 87 117 117 117 117 121 136 131 143 143 136 Greatest Overweight (x) 2 | . 1 1 . 2 2 1 1 1 . 1 1 . 1 1 . . 2 . . . . . . . 1 . . . . . . . . . Average Overweight (x) . | . . . . 1 1 1 1 . . . . . . . . . . . . . . . . . . . . . . . . . . . Largest Inventory Capacity 20 | 8 15 15 20 20 20 20 20 20 20 20 20 20 20 20 20 20 5 5 5 5 15 15 15 15 15 15 15 15 15 15 15 15 15 15 Average Capacity 16 | 6 14 15 17 20 20 20 20 20 19 20 20 20 20 20 20 14 5 5 5 5 11 15 15 15 15 15 15 15 15 15 15 15 15 15 Most Carried 20 | 3 15 15 20 19 19 19 20 20 20 20 20 20 20 20 20 20 5 5 5 5 14 15 15 15 15 15 15 15 15 15 15 15 15 15 Average Carried 15 | 1 10 14 16 18 17 18 19 19 19 19 19 19 19 19 19 14 4 4 4 5 9 12 14 14 14 13 14 14 13 14 14 14 14 14 Final Capacity 20 | 8 15 15 20 20 20 20 20 20 20 20 20 20 20 20 20 5 5 5 5 5 15 15 15 15 15 15 15 15 15 15 15 15 15 15 Final Carried 20 | 3 13 15 19 18 18 19 20 20 20 20 20 20 20 20 20 5 5 5 5 5 12 15 15 13 15 14 14 15 14 15 15 15 14 14 Class Distribution -------------------- 23% | Scavenger-Gunner 12% | Mutant 11% | Scavenger-Gladiator 9% | Scavenger-Tank 9% | Skirmisher 9% | Scavenger-Skirmisher 8% | Gunner 5% | Tank 4% | Commander-Gladiator 3% | Scavenger-Mutant Dominant Class ---------------- Mutant | -10/Materials Mutant | -10/Mines Scavenger-Gunner | -9/Materials Gunner | -9/Mines Gunner | -9/Exiles Gunner | -8/Mines Scavenger-Tank | -8/Materials Tank | -8/Storage Tank | -7/Factory Skirmisher | -7/Lower Caves Skirmisher | -7/Lower Caves Mutant | -7/Zion Skirmisher | -7/Deep Caves Scavenger-Skirmisher | -6/Proximity Caves Scavenger-Skirmisher | -6/Factory Scavenger-Skirmisher | -6/Waste Skirmisher | -6/Factory Commander-Gladiator | -6/Extension Commander-Gladiator | -6/Cetus Commander-Gladiator | -6/Archives Scavenger-Gladiator | -6/Hub_04(d) Scavenger-Gladiator | -5/Factory Scavenger-Gladiator | -5/Upper Caves Scavenger-Gladiator | -5/Upper Caves Scavenger-Gladiator | -5/Warlord Scavenger-Skirmisher | -4/Proximity Caves Scavenger-Tank | -4/Factory Scavenger-Gunner | -4/Upper Caves Scavenger-Gunner | -4/Upper Caves Scavenger-Mutant | -4/Zhirov Scavenger-Gunner | -3/Proximity Caves Scavenger-Gunner | -3/Research Scavenger-Gunner | -3/Quarantine Scavenger-Gunner | -3/Protoforge Resources | -11 -10 -10 -9 -9 -9 -8 -8 -8 -7 -7 -7 -7 -7 -6 -6 -6 -6 -6 -6 -6 -6 -5 -5 -5 -5 -4 -4 -4 -4 -4 -3 -3 -3 -3 ----------- Run | Yrd Mat Min Mat Min Exi Min Mat Sto Fac Low Low Zio Dee Pro Fac Was Fac Ext Cet Arc Hub Fac Upp Upp War Pro Fac Upp Upp Zhi Pro Res Qua Frg Matter Collected 13978 | 267 658 140 918 270 60 249 1554 781 271 283 422 43 203 494 171 . 643 553 165 73 95 470 66 126 449 455 749 685 258 50 357 1033 347 620 Remotely . | . . . . . . . . . . . . . . . . . . . . . . . . . . . . . . . . . . . Salvage Created 20735 | 82 978 223 1664 134 . 463 1989 1690 418 261 339 . 96 667 250 . 1316 635 . 134 412 974 . 47 . 374 2018 1148 619 . 385 829 1342 1248 Parts 901 | 4 69 12 83 19 . 25 85 92 27 13 20 . 4 20 11 . 39 22 . 11 8 40 . 1 . 12 77 24 21 . 16 28 62 56 Haulers Intercepted 23 | . 2 . 3 . . . 5 3 . . . . . . . . 1 . . . 3 1 . . . . 1 . . . . 4 . . Recyclers Shooed 16 | 1 3 1 1 . . . 3 . . . . . . . . . . 2 . . 1 1 . . . . 3 . . . . . . . Parts Field Recycled . | . . . . . . . . . . . . . . . . . . . . . . . . . . . . . . . . . . . Retrieved Matter . | . . . . . . . . . . . . . . . . . . . . . . . . . . . . . . . . . . . Parts Self-Destructed 93 | . . . . . . . . . . 12 14 . . 35 . . . . . . . . . . . 12 . 5 11 . 4 . . . Prevented 84 | . . . . . . . . . . . . . . 45 . . . . . . . . . 2 . . . 13 13 . 11 . . . Parts Restored . | . . . . . . . . . . . . . . . . . . . . . . . . . . . . . . . . . . . Kills | -11 -10 -10 -9 -9 -9 -8 -8 -8 -7 -7 -7 -7 -7 -6 -6 -6 -6 -6 -6 -6 -6 -5 -5 -5 -5 -4 -4 -4 -4 -4 -3 -3 -3 -3 ------- Run | Yrd Mat Min Mat Min Exi Min Mat Sto Fac Low Low Zio Dee Pro Fac Was Fac Ext Cet Arc Hub Fac Upp Upp War Pro Fac Upp Upp Zhi Pro Res Qua Frg Combat Hostiles Destroyed 337 | . 19 8 38 10 . 13 30 24 11 7 14 . 3 12 4 . 14 9 . . 2 5 . 1 . 10 28 7 13 . 7 7 18 23 Melee 5 | . . . . . . . . . . . . . . . . . . 3 . . 2 . . . . . . . . . . . . . Guns 130 | . 17 5 25 3 . 8 21 5 . 1 1 . . . . . 3 . . . . . . . . 8 5 2 2 . 1 7 11 5 Cannons 64 | . . . . . . . 5 11 5 1 1 . 3 6 3 . 6 6 . . . . . . . 2 3 . 2 . 2 . . 8 AOE 115 | . 2 3 12 7 . 5 4 8 6 5 11 . . 5 . . 3 . . . . 5 . . . . 15 1 7 . 2 . 6 8 Classes Destroyed 24 | 2 8 1 2 . . 1 . 1 2 . 1 . 1 . . . . . . . . . . . . 2 1 1 . . . . 1 . Worker 28 | . 3 . 3 1 . 3 1 . 1 . . . . . 2 . 1 . . . . 3 . . . . 3 . . . . 2 5 . Builder 15 | . 2 1 . 1 . . 1 4 . . . . . . . . 1 1 . . . 1 . . . . . . . . . . 2 1 Tunneler 7 | 1 1 1 . 2 . . 1 . . . . . . . . . . . . . . . . . . . . . . . . 1 . . Hauler 23 | . 2 . 3 . . . 5 3 . . . . . . . . 1 . . . 3 1 . . . . 1 . . . . 4 . . Recycler 23 | 1 1 1 . . . 1 4 3 . . . . . . . . 3 . . . . 5 . . . . 4 . . . . . . . Minesweeper 1 | . . . . . . . . . . . . . . . . . . . . . . . . . . 1 . . . . . . . . Mechanic 8 | . 1 . 1 . . . . 1 1 . . . . . . . . . . . . 1 . . . . 1 . . . . . 1 1 Operator 14 | . 3 . 1 . . . 1 1 . . . . . . . . 1 1 . 4 . 1 . . . . . . . . . . 1 . Drone 4 | . . . . . . . . . . . . . . . . . . . . . . . . . . 1 . . . . 2 . . 1 Watcher 20 | . 1 . 5 . . . 3 1 1 . . . . . 2 . 1 . . . . 1 . . . . 4 . . . . . 1 . Swarmer 79 | . 6 6 3 7 . 7 6 . 6 . 3 . . 4 . . 3 2 . . . 5 . . . 5 10 3 1 . . 2 . . Grunt 143 | . 13 . 26 . . 5 18 15 2 4 5 . . 3 . . 5 4 . . 1 . . . . 3 7 4 6 . . 2 9 11 Brawler 7 | . . . 1 . . . . 2 . . 1 . . 2 . . . . . . . . . . . . 1 . . . . . . . Duelist 9 | . . . . . . . . 1 . 2 . . . . . . 2 . . . . . . . . . . . 3 . . . . 1 Protector 1 | . . . . . . . . . . . . . . . . . . . . . . . . . . . 1 . . . . . . . Sentry 36 | . . . 8 . . . 6 6 1 1 . . . . 2 . 2 1 . . 1 . . . . 1 1 . 2 . . 1 . 3 Demolisher 1 | . . . . . . . . . 1 . . . . . . . . . . . . . . . . . . . . . . . . . Specialist 5 | . . . . . . . . . . . . . . . . . . . . . . . . . . . . . . . . . 5 . Hunter 20 | . . . . . . 1 . . . . . . . 4 . . . . . . . . . 1 . . 4 . . . 4 2 2 2 Programmer 15 | . . . . . . . . . 1 . . . . . 2 . 2 . . . . . . . . . 4 . . . 1 . 2 3 Immortal 2 | . . . . . . . . . . . . . . . . . . . . . . . . . . . . . . . . . . 2 Z-Light 1 | . . . . . . . . . . . . . 1 . . . . . . . . . . . . . . . . . . . . . Decomposer 2 | . . . . . . . . . . . . . . . . . . . . . . . . . . . . 2 . . . . . . Packrat 4 | . . . . . . . . . . . . . . . . . . . . . . . . . . . . 4 . . . . . . Samaritan 1 | . . . . . . . . . . . . . . . . . . . . . . . . . . . . 1 . . . . . . Assembled 7 | . . 2 . 3 . . . . . . . . 2 . . . . . . . . . . . . . . . . . . . . . Wasp 3 | . . . . . . . . . . . 3 . . . . . . . . . . . . . . . . . . . . . . . Thug 2 | . . . . . . . . 1 . . 1 . . . . . . . . . . . . . . . . . . . . . . . Savage 3 | . . . . . . . . . . . . . . 2 . . . . . . . . . . . . . . 1 . . . . . Butcher 4 | . . . . . . . . . . . . . . . . . . 4 . . . . . . . . . . . . . . . . Mutant 4 | . . . . . . . . . . . 1 . . 2 . . . . . . . . . . . . . 1 . . . . . . Best Kill Streak 16 | 2 3 3 7 4 . 4 5 7 3 3 4 . 1 7 2 . 3 3 . 2 2 5 . 1 . 5 16 3 9 . 2 5 9 13 Combat Bots Only 13 | . 3 3 4 4 . 3 5 6 3 3 4 . 1 7 1 . 3 3 . . 2 5 . 1 . 5 6 4 9 . 2 2 8 13 Max Kills in Single Turn 6 | 1 2 2 3 3 . 4 3 5 3 2 3 . 1 5 1 . 3 1 . 1 1 3 . 1 . 2 6 2 3 . 1 1 3 2 Gunslinging 1 | . . . 1 . . . . . . . . . . . . . . . . . . . . . . . . 1 . . . . 1 . Exploded 5 | . 2 2 2 3 . 3 3 4 3 2 3 . . 3 . . 3 . . . . 3 . . . . 5 1 3 . 1 . 2 2 Melee 1 | . . . . . . . . . . . . . . . . . . 1 . . 1 . . . . . . . . . . . . . Uniques/NPCs Destroyed 1 | . . . . . . . . . . . . . 1 . . . . . . . . . . . . . . . . . . . . . Z-Imprinter (-7/Deep Caves) Combat | -11 -10 -10 -9 -9 -9 -8 -8 -8 -7 -7 -7 -7 -7 -6 -6 -6 -6 -6 -6 -6 -6 -5 -5 -5 -5 -4 -4 -4 -4 -4 -3 -3 -3 -3 -------- Run | Yrd Mat Min Mat Min Exi Min Mat Sto Fac Low Low Zio Dee Pro Fac Was Fac Ext Cet Arc Hub Fac Upp Upp War Pro Fac Upp Upp Zhi Pro Res Qua Frg Hostile Shots Fired 2055 | . 104 21 118 13 . 43 146 79 59 19 25 . 17 65 42 5 146 170 25 8 114 13 . 8 32 31 193 22 30 . 86 12 219 190 Missed 743 | . 30 3 42 3 . 12 39 22 22 7 7 . 7 17 25 1 51 70 7 2 34 9 . . 16 14 101 12 12 . 26 4 96 52 Hits 1312 | . 74 18 76 10 . 31 107 57 37 12 18 . 10 48 17 4 95 100 18 6 80 4 . 8 16 17 92 10 18 . 60 8 123 138 Melee 42 | . . 3 . 1 . . . . . . 3 . . . . 4 16 . . . . . . . 1 . . . 1 . . . . 13 Projectile 1270 | . 74 15 76 9 . 31 107 57 37 12 15 . 10 48 17 . 79 100 18 6 80 4 . 8 15 17 92 10 17 . 60 8 123 125 AOE 8 | . . . . . . . . . 4 . . . . . . . . . . . . . . . 4 . . . . . . . . . Critical Strikes 59 | . . . 3 . . 1 3 5 . . 1 . . . . . 9 2 1 . . . . 1 2 1 7 3 1 . 1 . 3 15 Part Disruptions 4 | . . 2 . . . . . 1 . . . . . . . . . . . . . . . . . . . . . . 1 . . . Damage Taken 22138 | . 872 241 954 160 . 377 1595 1191 617 87 352 . 227 921 122 178 1494 1224 399 145 956 122 . 427 778 211 1726 188 390 . 715 148 1599 3722 Core 3342 | . 128 78 168 . . 88 165 133 81 . . . 27 145 11 40 179 187 29 . 144 16 . 35 75 27 127 21 64 . 28 . 403 943 Absorbed by Shields 882 | . . . . . . . . . . . . . . . . . . 55 112 . . . . . 273 119 56 . . . 208 54 5 . Redirected to Core 696 | . . . . . . . . . . . . . . . . . . . . . . . . . . . . . . . . . 337 359 Regen/Repaired (Parts) 1092 | . . . 20 . . . 20 69 174 . . . . 61 . . . . . . . . . . 267 . 481 . . . . . . . Core Remaining (%) 56 | 100 . 17 . . . 36 . 45 . . . . . 63 . . . . . . 30 . . . . 84 . . . . 79 . . . Volleys Fired 1081 | 7 98 23 87 13 . 28 120 70 25 12 19 . 22 58 30 1 60 25 . . . 4 9 19 . 30 86 39 19 . 29 24 42 82 Largest 4 | 2 2 2 3 3 . 3 3 3 3 3 3 . 3 3 3 1 3 3 . . . 1 1 1 . 3 3 3 3 . 3 4 4 4 Hottest 317 | 60 80 96 168 168 . 168 168 223 166 178 178 . 240 250 250 90 270 270 . . . 39 98 98 . 200 111 126 158 . 158 234 234 317 Shots Fired 2163 | 14 191 42 242 29 . 76 312 146 46 23 34 . 46 88 50 1 121 45 . . . 4 9 18 . 69 119 60 28 . 34 92 90 134 Gun 1353 | 14 190 40 232 23 . 73 261 45 2 4 7 . . . . . 36 . . . . . . . . 65 74 40 13 . 12 92 81 49 Cannon 711 | . . . . . . . 45 96 41 14 16 . 46 81 50 1 84 45 . . . . 9 18 . 4 37 12 10 . 19 . 4 79 Launcher 94 | . 1 2 10 6 . 3 6 5 3 5 11 . . 7 . . 1 . . . . 4 . . . . 6 8 2 . 3 . 5 6 Special 5 | . . . . . . . . . . . . . . . . . . . . . . . . . . . 2 . 3 . . . . . Kinetic 705 | 7 104 . 16 . . . 168 37 2 4 7 . . . 1 . . . . . . . . . . 65 74 40 13 . 12 82 48 25 Thermal 1232 | 7 86 40 216 23 . 73 138 104 41 14 16 . 46 81 49 1 105 45 . . . . 9 18 . . . . . . . 10 33 77 Explosive 89 | . 1 2 10 6 . 3 6 5 3 5 11 . . 7 . . 1 . . . . 4 . . . . 8 . 3 . 3 . 5 6 Electromagnetic 122 | . . . . . . . . . . . . . . . . . 15 . . . . . . . . . 37 20 12 . 19 . 4 15 Entropic 15 | . . . . . . . . . . . . . . . . . . . . . . . . . . 4 . . . . . . . 11 Robot Hit Streak 34 | 5 11 6 17 13 . 8 17 9 4 5 3 . 5 6 11 2 17 7 . . . 1 . . . 5 13 34 8 . 9 18 20 21 Robot Miss Streak 9 | 2 7 4 9 3 . 3 4 3 4 3 3 . 5 5 3 . 3 2 . . . 1 . . . 5 4 1 3 . 2 2 4 3 Penetration Max 2 | . . . . . . . . . . . . . . . . . . . . . . . . . . . . . . . . 1 2 1 Secondary Targets 12 | . 1 . 1 . . 1 4 . . . . . . . . . . . . . . . . . . 1 1 1 . . . . 2 . Max Gunslinging Chain 1 | . 1 . 1 . . 1 1 . . . . . . . . . . . . . . . . . . 1 1 1 . . . . 1 . Shots Hit Robots 1288 | 8 122 21 136 13 . 38 201 90 22 10 12 . 16 32 21 1 76 51 2 9 25 22 . 5 . 35 72 34 15 . 18 53 59 69 Core Hits 795 | 3 57 13 80 16 . 26 77 66 19 13 24 . 6 35 9 . 35 24 1 4 6 25 . 1 . 13 60 19 30 . 11 21 52 49 Critical Kills 12 | . . . . . . . . . . . . . . 1 . . 2 . . . . . . . . 3 . . . . . 2 1 3 Critical Parts Destroyed 12 | . . . 1 . . . 1 . . . 1 . . . . . . . . . . . . 1 . 3 2 . . . . 2 1 . Critical Strikes 75 | . . 1 8 2 . 4 7 . . . 1 . . 1 . . 6 4 . . 4 2 . 2 . 9 4 . . . . 4 4 12 Burn 28 | . . 1 7 2 . 4 6 . . . . . . . . . 3 . . . . . . . . . . . . . . . 2 3 Meltdown 3 | . . . . . . . . . . . . . . 1 . . 2 . . . . . . . . . . . . . . . . . Destroy 18 | . . . . . . . 1 . . . . . . . . . . . . . . . . . . 6 2 . . . . 4 2 3 Corrupt 2 | . . . . . . . . . . . . . . . . . 1 . . . . . . . . . 1 . . . . . . . Smash 3 | . . . 1 . . . . . . . 1 . . . . . . . . . . . . 1 . . . . . . . . . . Sever 12 | . . . . . . . . . . . . . . . . . . 4 . . 4 2 . 1 . . 1 . . . . . . . Sunder 9 | . . . . . . . . . . . . . . . . . . . . . . . . . . 3 . . . . . . . 6 Melee Attacks 144 | . . . 6 . . . 2 . . . 3 1 2 . . . . 25 3 10 32 43 4 9 3 1 . . . . . . . . Thermal 2 | . . . . . . . . . . . . . . . . . . . . . . . . . 1 1 . . . . . . . . Impact 18 | . . . 6 . . . 2 . . . 3 1 . . . . . 1 . . . . . 5 . . . . . . . . . . Slashing 122 | . . . . . . . . . . . . . . . . . . 24 3 10 32 43 4 4 2 . . . . . . . . . Piercing 2 | . . . . . . . . . . . . . 2 . . . . . . . . . . . . . . . . . . . . . Sneak Attacks 31 | . . . 1 . . . . . . . . . . . . . . 3 . 7 6 13 . . . 1 . . . . . . . . Combat Hostiles 1 | . . . . . . . . . . . . . . . . . . . . . . . . . . 1 . . . . . . . . Follow-up Attacks 13 | . . . . . . . . . . . . . . . . . . 3 . 1 6 2 . 1 . . . . . . . . . . Damage Inflicted 50880 | 79 1587 370 3484 683 . 957 4173 2951 1036 749 1442 . 516 2535 791 36 2581 2136 88 703 1244 2146 . 194 . 1276 4937 1637 2148 . 819 1659 3416 4507 Guns 16282 | 79 1505 261 1931 217 . 589 2785 532 18 43 54 . . . . . 465 . . . . . . . . 929 1313 706 161 . 168 1643 1813 1070 Cannons 12805 | . . . . . . . 764 1393 510 151 151 . 516 1029 645 36 1802 1114 . . . . . . . 347 1113 411 275 . 511 . 188 1849 Explosions 16337 | . 76 105 1447 465 . 350 571 1026 493 555 1130 . . 1506 146 . 314 . . . . 677 . . . . 2268 520 1622 . 140 . 1351 1575 Melee 4891 | . . . 99 . . . . . . . 107 . . . . . . 987 88 703 1244 1469 . 194 . . . . . . . . . . Ramming 370 | . 6 4 7 1 . 18 53 . 15 . . . . . . . . 35 . . . . . . . . 138 . . . . 16 64 13 Kinetic 9663 | 37 819 . 140 . . . 1688 382 18 43 54 . . . . . . . . . . . . . . 929 1313 706 161 . 168 1463 1160 582 Thermal 15226 | 42 686 261 1791 217 . 589 1861 1543 510 151 151 . 516 1029 791 36 2036 1114 . . . . . . . . . 111 . . . 180 653 958 Explosive 15249 | . 76 105 1417 465 . 350 571 1026 493 555 1130 . . 1506 . . 314 . . . . 464 . . . . 2268 . 1443 . 140 . 1351 1575 Electromagnetic 3912 | . . . 30 . . . . . . . . . . . . . 231 . . . . 213 . . . . 1113 820 454 . 511 . 188 352 Impact 421 | . . . 99 . . . . . . . 107 . . . . . . 61 . . . . . 154 . . . . . . . . . . Slashing 4665 | . . . . . . . . . . . . . . . . . . 926 88 703 1244 1469 . 40 . . 105 . 90 . . . . . Piercing . | . . . . . . . . . . . . . . . . . . . . . . . . . . . . . . . . . . . Entropic 1374 | . . . . . . . . . . . . . . . . . . . . . . . . . . 347 . . . . . . . 1027 Highest Corruption 39 | . . . 2 2 2 2 2 7 . . . . 3 4 . 9 12 12 12 12 2 5 5 16 16 3 4 4 11 11 39 . . 7 Average Corruption 5 | . . . 2 2 2 2 2 3 . . . . 3 3 . 9 9 12 12 7 2 4 5 9 14 3 2 4 9 11 18 . . 6 Corruption Purged 12 | . . . . . . . . . . . . . . . . . . . . 12 . . . . . . . . . . . . . . Corruption Blocked . | . . . . . . . . . . . . . . . . . . . . . . . . . . . . . . . . . . . Effects 511 | . . . 9 34 9 19 37 29 . . . . 20 53 . 1 49 46 17 8 5 16 14 30 3 13 5 21 25 6 37 . . 5 Message Errors 133 | . . . 2 12 1 3 9 9 . . . . 5 15 . . 12 11 7 2 1 4 3 13 . 5 1 4 3 2 8 . . 1 Matter Fused 125 | . . . 3 7 5 2 8 4 . . . . 5 14 . . 11 11 7 2 1 2 6 6 . 3 3 8 8 1 7 . . 1 Heat Flow Errors 57 | . . . 2 . . 2 . 1 . . . . 3 4 . . 9 8 . 1 . 3 2 4 1 1 . . 6 1 9 . . . Energy Discharges 69 | . . . . 2 . 4 6 6 . . . . 2 6 . . 9 9 1 2 . 1 2 . . 1 . 6 5 1 4 . . 2 Parts Rejected 3 | . . . . 1 . . . 1 . . . . . . . . 1 . . . . . . . . . . . . . . . . . Parts Fused 5 | . . . . 1 . 1 . . . . . . . . . . . . . . . 1 . 1 . . . . . . 1 . . . Data Loss (minor) 61 | . . . 1 5 2 4 4 2 . . . . 4 9 . 1 3 3 1 . 1 3 1 4 2 2 1 1 1 1 4 . . 1 Data Loss (major) 18 | . . . . 1 . 2 3 2 . . . . 1 1 . . . 4 1 . 2 . . . . . . . 1 . . . . . Misfires 11 | . . . 1 2 . . 1 2 . . . . . 2 . . 1 . . . . . . . . . . 1 . . 1 . . . Alerts 17 | . . . . 3 1 . 3 2 . . . . . 1 . . 1 . . . . 2 . 1 . 1 . 1 1 . . . . . Misdirections 1 | . . . . . . . . . . . . . . . . . . . . 1 . . . . . . . . . . . . . . Weapon Failures 11 | . . . . . . 1 3 . . . . . . 1 . . 2 . . . . . . 1 . . . . . . 3 . . . Overload Shots . | . . . . . . . . . . . . . . . . . . . . . . . . . . . . . . . . . . . Overflow Damage 1675 | . . 3 79 3 . . 55 60 72 23 56 . 16 56 1 . 85 92 . 158 52 296 . 45 . . 132 70 13 . 44 1 62 201 Projectiles 387 | . . . . . . . . 2 22 . . . 16 24 . . 44 32 . . . . . . . . 9 70 13 . 38 . . 117 Explosions 505 | . . 3 30 3 . . 55 58 50 23 7 . . 32 1 . 41 . . . . 20 . . . . 41 . . . 6 . 51 84 Melee 783 | . . . 49 . . . . . . . 49 . . . . . . 60 . 158 52 276 . 45 . . 82 . . . . 1 11 . Knockbacks 5 | . . . 1 . . 1 . . . . . . . . . . . . . . . . . 2 . . 1 . . . . . . . Impact 5 | . . . 1 . . 1 . . . . . . . . . . . . . . . . . 2 . . 1 . . . . . . . Kinetic . | . . . . . . . . . . . . . . . . . . . . . . . . . . . . . . . . . . . Secondary . | . . . . . . . . . . . . . . . . . . . . . . . . . . . . . . . . . . . Self-Inflicted Damage 589 | . 24 24 . 59 . . 19 155 . 11 87 . . 54 . . 62 . . . . . . . . . 94 . . . . . . . Shots 15 | . 1 1 . 2 . . 1 2 . 1 3 . . 2 . . 1 . . . . . . . . . 1 . . . . . . . Rammed 12 | . 2 4 5 1 . . . . . . . . . . . . . . . . . . . . . . . . . . . . . . Targets Rammed 34 | . 2 5 5 1 . 2 6 . 2 . . . . . . . . 4 . . . . . . . . 3 . . . . 1 2 1 Kicked 21 | . . . . . . 2 6 . 2 . . . . . . . . 4 . . . . . . . . 3 . . . . 1 2 1 Crushed 1 | . . 1 . . . . . . . . . . . . . . . . . . . . . . . . . . . . . . . . Highest Temperature 495 | 40 72 114 252 204 . 398 389 427 150 171 240 . 378 278 247 . 315 266 . 180 19 273 265 444 100 222 495 144 340 104 200 114 17 9 Average Temperature 84 | 25 22 39 62 61 . 123 72 106 45 73 95 . 136 108 81 . 77 101 . 93 13 111 74 133 58 51 77 68 109 65 67 39 17 3 Received Heat Transfer 5203 | . 408 40 447 . . 117 828 558 54 9 132 . 45 63 18 . 294 396 48 27 354 18 . . 58 44 126 88 78 . . 18 211 724 Effects 21 | . . . . . . 4 4 2 . . . . 2 . 3 . . . . . . 1 . 3 . . 2 . . . . . . . Shutdowns 2 | . . . . . . 1 . . . . . . . . . . . . . . . . . . . . 1 . . . . . . . Energy Bleed 3 | . . . . . . 1 . 1 . . . . . . . . . . . . . 1 . . . . . . . . . . . . Interference 9 | . . . . . . 2 4 . . . . . . . 3 . . . . . . . . . . . . . . . . . . . Short Circuit 1 | . . . . . . . . . . . . . 1 . . . . . . . . . . . . . . . . . . . . . Damage (minor) 3 | . . . . . . . . 1 . . . . 1 . . . . . . . . . . . . . 1 . . . . . . . Damage (major) 3 | . . . . . . . . . . . . . . . . . . . . . . . . 3 . . . . . . . . . . Siege Activations . | . . . . . . . . . . . . . . . . . . . . . . . . . . . . . . . . . . . Martial Activations . | . . . . . . . . . . . . . . . . . . . . . . . . . . . . . . . . . . . Shielding Activations . | . . . . . . . . . . . . . . . . . . . . . . . . . . . . . . . . . . . Robots Disrupted 2 | . . . 1 . . . . . . . . . . . . . . . . . . 1 . . . . . . . . . . . . Combat Hostiles 1 | . . . . . . . . . . . . . . . . . . . . . . 1 . . . . . . . . . . . . Robots Corrupted 25 | . . . 1 . . . . . . . 1 . . . . . . . . . . . . 1 . . 9 4 2 . 2 1 2 2 Combat Hostiles 18 | . . . . . . . . . . . 1 . . . . . . . . . . . . 1 . . 5 4 2 . 2 . 1 2 Parts Fried 39 | . . . 1 . . . . . . . 3 . . . . . 1 . . . . 1 . 3 . . 13 7 . . 5 . 2 3 Impact Corruptions 13 | . . . 2 . . . . . . . 1 . . . . . . 1 . . . . . 2 . . 5 . . . . 1 1 . Robots Melted 6 | . . . 1 . . . . . . . . . . 1 1 . 3 . . . . . . . . . . . . . . . . . Combat Hostiles 5 | . . . 1 . . . . . . . . . . 1 1 . 2 . . . . . . . . . . . . . . . . . Parts Melted 66 | . 3 2 13 2 . 7 7 1 1 1 . . . 6 1 . 16 2 . . . . . . . . . . . . . 3 1 . Heat Transferred 29534 | 100 1550 707 4534 629 . 1739 4423 2651 777 261 248 . 790 1473 1109 37 3403 1750 . . . . . . . . . 160 . . . 298 1344 1551 Parts Sabotaged . | . . . . . . . . . . . . . . . . . . . . . . . . . . . . . . . . . . . Parts Stolen 1 | . . . . . . . . . . . 1 . . . . . . . . . . . . . . . . . . . . . . . Parts Stripped . | . . . . . . . . . . . . . . . . . . . . . . . . . . . . . . . . . . . Power Chain Reactions . | . . . . . . . . . . . . . . . . . . . . . . . . . . . . . . . . . . . Alert | -11 -10 -10 -9 -9 -9 -8 -8 -8 -7 -7 -7 -7 -7 -6 -6 -6 -6 -6 -6 -6 -6 -5 -5 -5 -5 -4 -4 -4 -4 -4 -3 -3 -3 -3 ------- Run | Yrd Mat Min Mat Min Exi Min Mat Sto Fac Low Low Zio Dee Pro Fac Was Fac Ext Cet Arc Hub Fac Upp Upp War Pro Fac Upp Upp Zhi Pro Res Qua Frg Maximum Alert Level 3 | . 1 . 3 1 . . 1 2 1 . . . . . . . . 3 2 1 1 2 . . . . 3 . . . . 1 2 2 Low Security (%) 55 | 100 41 100 47 73 . 100 77 7 55 . . . . . 100 100 100 27 . 39 62 24 . . . . . . . . . 49 24 17 Level 1 34 | . 58 . 28 26 . . 22 88 44 . . . . . . . . 47 17 60 37 72 . . . . 13 . . . . 50 57 68 Level 2 6 | . . . 13 . . . . 4 . . . . . . . . . 15 82 . . 2 . . . . 49 . . . . . 17 14 Level 3 2 | . . . 11 . . . . . . . . . . . . . . 10 . . . . . . . . 36 . . . . . . . Level 4 . | . . . . . . . . . . . . . . . . . . . . . . . . . . . . . . . . . . . Level 5 . | . . . . . . . . . . . . . . . . . . . . . . . . . . . . . . . . . . . High Security . | . . . . . . . . . . . . . . . . . . . . . . . . . . . . . . . . . . . Max Security . | . . . . . . . . . . . . . . . . . . . . . . . . . . . . . . . . . . . Peak Influence 1082 | 5 299 97 833 322 . 112 309 439 300 . . . . . 105 24 165 811 507 317 310 440 . . . . 1082 . . . . 321 569 458 Initial 453 | . . 61 33 322 . . . 33 193 . . . . . 105 24 . 64 453 186 46 86 . . . . 450 . . . . 300 72 292 Average 190 | . 180 15 266 118 . 41 94 267 187 . . . . . 32 9 70 321 448 224 182 244 . . . . 637 . . . . 219 309 274 Influence Increases 16343 | 10 762 245 1291 280 . 401 1143 1224 443 160 264 . . 809 234 . 526 1311 354 231 618 895 . 20 207 200 1617 225 285 . 140 712 838 898 Destroy 0b10 Robot/C 7920 | . 380 180 760 140 . 260 600 620 240 140 200 . . 480 80 . 280 580 160 80 160 400 . 20 20 180 540 140 240 . 100 140 360 440 Destroy 0b10 Robot/NC 820 | 10 70 15 65 20 . 20 80 70 15 . . . . 5 20 . 40 40 10 25 40 70 . . . 10 70 10 5 . 10 35 50 15 Destroy Leader 1430 | . 86 20 196 20 . 40 156 148 62 20 30 . . 10 44 . 74 66 . . 64 76 . . . 10 98 . 10 . 30 38 42 90 Allied During Kill 1298 | . . 3 . . . . . 44 11 . 34 . . 179 . . . 481 170 105 184 80 . . 7 . . . . . . . . . Successful Hack 617 | . 19 . 64 . . . 29 21 39 . . . . . . . 5 27 8 . 10 83 . . . . 78 . . . . 100 90 44 Select Force Hacks 210 | . 60 . . . . . . . . . . . . . . . . . . . 150 . . . . . . . . . . . . . Disable Machine 855 | . . 15 45 60 . 15 45 165 . . . . . . 45 . 30 45 . 15 . 60 . . . . 135 . . . . 45 120 15 Destroy Structure 1128 | . 12 12 71 40 . 21 68 96 31 . . . . . 45 . 52 42 6 6 10 66 . . . . 246 . . . . 54 116 134 Advance Influence 750 | . . . . . . . . . . . . . . . . . . . . . . . . . . . 450 . . . . 300 . . Partial Spotted 45 | . . . . . . . 15 15 . . . . . . . . . . . . . . . . . . . . . . . . 15 . Lose Combat Pursuer 1170 | . 135 . 90 . . 45 150 45 45 . . . . 135 . . 45 30 . . . 60 . . 180 . . 75 30 . . . 45 60 Miscellaneous 100 | . . . . . . . . . . . . . . . . . . . . . . . . . . . . . . . . . . 100 Influence Decreases 15963 | 10 603 318 548 964 145 401 1063 877 656 374 164 100 . 641 332 70 394 632 700 561 576 651 421 20 108 299 538 762 460 367 140 584 446 1038 Entered New Map 3669 | . . 98 53 507 145 . . 47 234 80 . 100 . . 63 46 . 68 358 279 89 91 157 . . 99 . 400 104 367 . . 56 228 Time Decay 9877 | 10 573 220 495 457 . 391 603 510 422 294 164 . . 431 269 20 324 494 222 222 270 490 264 20 62 200 428 362 326 . 140 434 380 380 Search Patrol Dispatched 100 | . . . . . . . . . . . . . . . . . . . . . . . . . . . 100 . . . . . . . Lost Part 404 | . 30 . . . . 10 10 20 . . . . . 10 . 4 60 30 . . 40 10 . . . . 10 . 30 . . . 10 130 Lost Ally 713 | . . . . . . . . . . . . . . 200 . . 10 40 120 60 177 60 . . 46 . . . . . . . . . Purge Threat 1200 | . . . . . . . 450 300 . . . . . . . . . . . . . . . . . . . . . . . 150 . 300 Squads Dispatched 74 | . 5 . 6 . . . 8 4 6 . . . . 2 2 . 3 1 . . 7 8 . . . . 6 . 1 . . 4 7 4 Investigation 18 | . 2 . 2 . . . 3 . . . . . . 1 . . . . . . 4 2 . . . . . . . . . 2 1 1 Extermination 12 | . . . . . . . . . 1 . . . . . 2 . 2 . . . . 2 . . . . 2 . . . . . 2 1 Reinforcement 27 | . 3 . 2 . . . 2 2 2 . . . . . . . 1 1 . . 1 3 . . . . 2 . . . . 2 4 2 Assault 10 | . . . 2 . . . . 2 . . . . . 1 . . . . . . 2 . . . . . 2 . 1 . . . . . Garrison 7 | . . . . . . . 3 . 3 . . . . . . . . . . . . 1 . . . . . . . . . . . . Intercept . | . . . . . . . . . . . . . . . . . . . . . . . . . . . . . . . . . . . Searches Triggered 1 | . . . . . . . . . . . . . . . . . . . . . . . . . . . 1 . . . . . . . Unchained Authorized 1 | . . . . . . . . . . . . . . . . . . . . . . . . . . . . . . . . . 1 . Construction Impeded 4 | . . . 1 . . . . . . . . . . . . . . . . . 1 . . . . . . . . . . . 1 1 Haulers Reinforced 4 | . . . . . . . . . . . . . . . . . 1 . . . . 1 . . . . . . . . . 2 . . Active Scanning Responses . | . . . . . . . . . . . . . . . . . . . . . . . . . . . . . . . . . . . Cargo Convoy Interrupts . | . . . . . . . . . . . . . . . . . . . . . . . . . . . . . . . . . . . Stealth | -11 -10 -10 -9 -9 -9 -8 -8 -8 -7 -7 -7 -7 -7 -6 -6 -6 -6 -6 -6 -6 -6 -5 -5 -5 -5 -4 -4 -4 -4 -4 -3 -3 -3 -3 --------- Run | Yrd Mat Min Mat Min Exi Min Mat Sto Fac Low Low Zio Dee Pro Fac Was Fac Ext Cet Arc Hub Fac Upp Upp War Pro Fac Upp Upp Zhi Pro Res Qua Frg Distress Signals 33 | . 3 . 4 1 . . 2 2 1 . . . . 1 . . . 3 2 . 4 2 . . 2 . . . . . . 5 1 . Communications Jammed . | . . . . . . . . . . . . . . . . . . . . . . . . . . . . . . . . . . . Distress Signals . | . . . . . . . . . . . . . . . . . . . . . . . . . . . . . . . . . . . Times Spotted 699 | . 50 10 53 10 . 16 52 39 18 6 15 . 10 39 6 5 22 25 8 10 18 18 . 2 118 10 42 8 14 . 8 14 28 25 Peak Tracking Total 18 | . 6 3 6 4 . 4 5 5 4 2 4 . 4 9 1 5 4 5 5 3 9 5 . 2 18 3 6 4 10 . 2 3 7 9 Tactical Retreats 43 | . 5 1 4 . . 2 6 2 2 . . . . 3 . . 2 2 . . . 2 . . 5 . . 2 1 . . . 2 2 ECM-based Alert Blocks 1 | . . . . . . . . . . . . . . . . . 1 . . . . . . . . . . . . . . . . . Traps | -11 -10 -10 -9 -9 -9 -8 -8 -8 -7 -7 -7 -7 -7 -6 -6 -6 -6 -6 -6 -6 -6 -5 -5 -5 -5 -4 -4 -4 -4 -4 -3 -3 -3 -3 ------- Run | Yrd Mat Min Mat Min Exi Min Mat Sto Fac Low Low Zio Dee Pro Fac Was Fac Ext Cet Arc Hub Fac Upp Upp War Pro Fac Upp Upp Zhi Pro Res Qua Frg Traps Triggered 22 | . 4 . 2 . . . 4 3 . . . . . . 1 . . 1 . . 1 1 . 1 . . 1 . . . . . 1 2 Indirectly 1 | . . . 1 . . . . . . . . . . . . . . . . . . . . . . . . . . . . . . . Trap Hack Attempts . | . . . . . . . . . . . . . . . . . . . . . . . . . . . . . . . . . . . Triggered . | . . . . . . . . . . . . . . . . . . . . . . . . . . . . . . . . . . . Disarmed . | . . . . . . . . . . . . . . . . . . . . . . . . . . . . . . . . . . . Reprogrammed . | . . . . . . . . . . . . . . . . . . . . . . . . . . . . . . . . . . . Reused . | . . . . . . . . . . . . . . . . . . . . . . . . . . . . . . . . . . . Traps Extracted . | . . . . . . . . . . . . . . . . . . . . . . . . . . . . . . . . . . . Installed 3 | . . 3 . . . . . . . . . . . . . . . . . . . . . . . . . . . . . . . . Triggered . | . . . . . . . . . . . . . . . . . . . . . . . . . . . . . . . . . . . Most Traps Carried 2 | . . . . . . . . . . . . . . . . . . . . . . . . . . . . . 2 . . . . . Objects Rigged 3 | . . . . . . . . . . . . . . . . . . . . . . 3 . . . . . . . . . . . . Exploded 2 | . . . . . . . . . . . . . . . . . . . . . . 2 . . . . . . . . . . . . Machines | -11 -10 -10 -9 -9 -9 -8 -8 -8 -7 -7 -7 -7 -7 -6 -6 -6 -6 -6 -6 -6 -6 -5 -5 -5 -5 -4 -4 -4 -4 -4 -3 -3 -3 -3 ---------- Run | Yrd Mat Min Mat Min Exi Min Mat Sto Fac Low Low Zio Dee Pro Fac Was Fac Ext Cet Arc Hub Fac Upp Upp War Pro Fac Upp Upp Zhi Pro Res Qua Frg Machines Disabled 65 | . 1 1 3 4 . 1 3 11 . . 1 . 1 . 3 . 2 3 . 1 . 4 . . 1 . 9 3 1 . . 3 8 1 Max in Single Turn 4 | . 1 1 2 4 . 1 1 2 . . 1 . . . 3 . 1 . . . . 2 . . 1 . 2 3 1 . . 2 1 1 Garrison Access 4 | . . . . . . . . 1 1 . . . . . 1 . . . . . 1 . . . . . . . . . . . . . Network Hub 4 | . . . . . . . . . . . . . . . . . . . . . 4 . . . . . . . . . . . . . Energy Cycler 1 | . . . . . . . . . . . . . . . . . . 1 . . . . . . . . . . . . . . . . Machines Repaired . | . . . . . . . . . . . . . . . . . . . . . . . . . . . . . . . . . . . Machines Dismantled 1 | . . . . . . . . . . . . . . . . . . . . . . . . . 1 . . . . . . . . . Machines Sabotaged 3 | . . . . . . . . . . . . . . . . . . . . . 3 . . . . . . . . . . . . . Overloaded Fab Kills . | . . . . . . . . . . . . . . . . . . . . . . . . . . . . . . . . . . . Hacking | -11 -10 -10 -9 -9 -9 -8 -8 -8 -7 -7 -7 -7 -7 -6 -6 -6 -6 -6 -6 -6 -6 -5 -5 -5 -5 -4 -4 -4 -4 -4 -3 -3 -3 -3 --------- Run | Yrd Mat Min Mat Min Exi Min Mat Sto Fac Low Low Zio Dee Pro Fac Was Fac Ext Cet Arc Hub Fac Upp Upp War Pro Fac Upp Upp Zhi Pro Res Qua Frg Machines Accessed 121 | . 8 . 11 1 1 . 7 9 11 2 . . . 2 12 . 4 10 1 . 6 8 1 . 1 . 4 1 1 4 1 5 3 7 Terminals 77 | . 6 . 8 1 . . 6 7 5 . . . . 1 7 . 2 9 1 . 6 5 . . . . 1 1 . . 1 4 3 3 Fabricators 5 | . . . . . . . . . 2 . . . . . 2 . . . . . . 1 . . . . . . . . . . . . Repair Stations 7 | . . . 1 . . . 1 1 2 . . . . . . . . . . . . . . . . . 1 . . . . . . 1 Recycling Units 6 | . 2 . 1 . . . . . . . . . . 1 . . 1 1 . . . . . . . . . . . . . . . . Scanalyzers 7 | . . . 1 . . . . . . . . . . . 1 . . . . . . 1 . . . . 1 . . . . 1 . 2 Garrison Access 9 | . . . . . . . . 1 2 . . . . . 2 . 1 . . . . 1 . . . . 1 . . . . . . 1 Total Hacks 375 | . 25 . 28 4 1 . 25 26 24 8 . . . 3 20 . 10 11 1 . 20 53 1 . 1 . 29 8 1 17 1 26 9 23 Successful 212 | . 15 . 20 . 1 . 16 13 9 8 . . . 1 6 . 3 8 1 . 10 33 1 . 1 . 15 8 1 17 1 12 5 7 Failed 158 | . 10 . 8 4 . . 9 13 15 . . . . 2 13 . 7 3 . . 10 19 . . . . 13 . . . . 13 4 15 Catastrophic 27 | . . . 1 1 . . 2 1 3 . . . . . 3 . 1 1 . . . 1 . . . . 5 . . . . 1 2 5 Database Lockouts 5 | . . . . . . . . . . . . . . . 1 . . . . . . 1 . . . . 1 . . . . 1 . 1 Manual 138 | . 23 . 13 4 . . 15 9 . . . 4 . . 8 . 2 2 1 . 12 30 . . . . 2 . . . . 8 4 1 Terminals 255 | . 21 . 20 4 . . 24 22 12 . . . . 1 11 . 6 10 1 . 20 44 . . . . 11 8 . . 1 22 9 8 Fabricators 10 | . . . . . . . . . 2 . . . . . 4 . . . . . . 4 . . . . . . . . . . . . Repair Stations 21 | . . . 2 . . . 1 2 5 . . . . . . . . . . . . . . . . . 6 . . . . . . 5 Recycling Units 11 | . 4 . 3 . . . . . . . . . . 2 . . 1 1 . . . . . . . . . . . . . . . . Scanalyzers 25 | . . . 3 . . . . . . . . . . . 3 . . . . . . 1 . . . . 8 . . . . 4 . 6 Garrison Access 24 | . . . . . . . . 2 5 . . . . . 2 . 3 . . . . 4 . . . . 4 . . . . . . 4 Terminal Hacks 116 | . 4 . 7 . 1 . 8 5 4 8 . . . 1 . . 1 6 1 . 4 20 1 . 1 . 4 8 1 17 1 7 3 3 Record 22 | . . . . . 1 . . . . 7 . . . . . . . . . . . . . . . . . 8 . 5 1 . . . Part Schematic 5 | . . . . . . . . . . . . . . . . . . . . . . 1 . . . . . . . 4 . . . . Robot Schematic 1 | . . . . . . . . . . . . . . . . . . . . . . 1 . . . . . . . . . . . . Robot Analysis 4 | . . . . . . . . . . . . . . . . . . . . . . . . . . . . . . 4 . . . . Prototype ID Bank 17 | . 4 . 2 . . . 2 . . . . . . . . . . . . . . 5 . . . . . . . 4 . . . . Open Door 13 | . . . . . . . . 2 . 1 . . . 1 . . . 5 1 . . . 1 . 1 . . . 1 . . . . . Level Access Points 1 | . . . . . . . . . . . . . . . . . . . . . . . . . . . . . . . . . 1 . Branch Access Points 6 | . . . 1 . . . . . 1 . . . . . . . . . . . . 2 . . . . 1 . . . . 1 . . Emergency Access Points 2 | . . . . . . . . . . . . . . . . . . . . . . 2 . . . . . . . . . . . . Machine Index 1 | . . . . . . . . . . . . . . . . . . . . . . 1 . . . . . . . . . . . . Terminal Index 5 | . . . 1 . . . 1 . 1 . . . . . . . 1 . . . 1 . . . . . . . . . . . . . Fabricator Index 1 | . . . . . . . . . . . . . . . . . . . . . 1 . . . . . . . . . . . . . Alert Level 4 | . . . . . . . 1 . . . . . . . . . . . . . . 1 . . . . . . . . . 1 1 . Unreport Threat 9 | . . . . . . . 3 2 . . . . . . . . . . . . . . . . . . . . . . . 1 . 3 Locate Traps 2 | . . . 1 . . . . 1 . . . . . . . . . . . . . . . . . . . . . . . . . . Maintenance Status 1 | . . . . . . . . . . . . . . . . . . . . . . . . . . . . . . . . 1 . . Surveillance Status 1 | . . . . . . . . . . . . . . . . . . . . . . 1 . . . . . . . . . . . . Transport Status 1 | . . . . . . . . . . . . . . . . . . . . . . 1 . . . . . . . . . . . . Recall Investigation 1 | . . . . . . . . . . . . . . . . . . . . . . . . . . . 1 . . . . . . . Recall Reinforcements 1 | . . . . . . . . . . . . . . . . . . . . . . 1 . . . . . . . . . . . . Hauler Manifests 5 | . . . 1 . . . . . 1 . . . . . . . . 1 . . . . . . . . 1 . . . . 1 . . Registered Components 6 | . . . . . . . 1 . 1 . . . . . . . . . . . 1 1 . . . . 1 . . . . 1 . . Registered Prototypes 1 | . . . . . . . . . . . . . . . . . . . . . . 1 . . . . . . . . . . . . Zone Layout 6 | . . . 1 . . . . . . . . . . . . . . . . . 1 2 . . . . . . . . . 1 1 . Fabricator Hacks 6 | . . . . . . . . . 2 . . . . . 1 . . . . . . 3 . . . . . . . . . . . . Network Status 4 | . . . . . . . . . 2 . . . . . 1 . . . . . . 1 . . . . . . . . . . . . Load Schematic 1 | . . . . . . . . . . . . . . . . . . . . . . 1 . . . . . . . . . . . . Build 1 | . . . . . . . . . . . . . . . . . . . . . . 1 . . . . . . . . . . . . Repair Station Hacks 10 | . . . 2 . . . . 2 2 . . . . . . . . . . . . . . . . . 3 . . . . . . 1 Scan Component 5 | . . . 1 . . . . 1 1 . . . . . . . . . . . . . . . . . 1 . . . . . . 1 Repair 4 | . . . 1 . . . . 1 1 . . . . . . . . . . . . . . . . . 1 . . . . . . . Refit 1 | . . . . . . . . . . . . . . . . . . . . . . . . . . . 1 . . . . . . . Recycling Unit Hacks 3 | . . . 1 . . . . . . . . . . . . . 1 1 . . . . . . . . . . . . . . . . Retrieve Components 3 | . . . 1 . . . . . . . . . . . . . 1 1 . . . . . . . . . . . . . . . . Scanalyzer 15 | . . . 3 . . . . . . . . . . . 2 . . . . . . . . . . . 7 . . . . 1 . 2 Retrieve Study 15 | . . . 3 . . . . . . . . . . . 2 . . . . . . . . . . . 7 . . . . 1 . 2 Garrison Access Hacks 3 | . . . . . . . . 1 1 . . . . . 1 . . . . . . . . . . . . . . . . . . . Seal Access 3 | . . . . . . . . 1 1 . . . . . 1 . . . . . . . . . . . . . . . . . . . Unauthorized Hacks 57 | . 9 . 7 . . . 8 5 . . . . . . 2 . 1 1 . . 6 10 . . . . 1 . . . . 4 2 1 Terminals 53 | . 7 . 7 . . . 7 5 . . . . . . 2 . 1 1 . . 6 9 . . . . 1 . . . . 4 2 1 Assimilate 3 | . . . . . . . . . . . . . . . . . 1 . . . . . . . . . . . . . . . 1 1 Botnet 22 | . 2 . 2 . . . 2 2 . . . . . . 2 . . 1 . . 2 5 . . . . 1 . . . . 2 1 . Detonate 1 | . . . . . . . . . . . . . . . . . . . . . . 1 . . . . . . . . . . . . Operators 3 | . . . . . . . . . . . . . . . . . . . . . . 1 . . . . . . . . . 2 . . Skim 20 | . 5 . 5 . . . 5 3 . . . . . . . . . . . . . 2 . . . . . . . . . . . . Sabotage 4 | . . . . . . . . . . . . . . . . . . . . . 4 . . . . . . . . . . . . . Fabricators . | . . . . . . . . . . . . . . . . . . . . . . . . . . . . . . . . . . . Repair Stations 1 | . . . . . . . 1 . . . . . . . . . . . . . . . . . . . . . . . . . . . Patch 1 | . . . . . . . 1 . . . . . . . . . . . . . . . . . . . . . . . . . . . Recycling Units 2 | . 2 . . . . . . . . . . . . . . . . . . . . . . . . . . . . . . . . . Tunnel 2 | . 2 . . . . . . . . . . . . . . . . . . . . . . . . . . . . . . . . . Scanalyzers . | . . . . . . . . . . . . . . . . . . . . . . . . . . . . . . . . . . . Garrison Access 1 | . . . . . . . . . . . . . . . . . . . . . . 1 . . . . . . . . . . . . Reprogram 1 | . . . . . . . . . . . . . . . . . . . . . . 1 . . . . . . . . . . . . Data Cores Recovered . | . . . . . . . . . . . . . . . . . . . . . . . . . . . . . . . . . . . Used . | . . . . . . . . . . . . . . . . . . . . . . . . . . . . . . . . . . . Hacking Detections 83 | . 7 . 9 1 . . 6 9 9 . . . . 2 9 . 3 4 1 . 4 6 . . . . 3 1 . . . 2 2 5 Full Trace Events 4 | . . . 1 . . . 1 . . . . . . 1 . . . . . . . 1 . . . . . . . . . . . . Feedback Events . | . . . . . . . . . . . . . . . . . . . . . . . . . . . . . . . . . . . Feedback Blocked . | . . . . . . . . . . . . . . . . . . . . . . . . . . . . . . . . . . . Robot Schematics Acquired 5 | . . . . . . . . . . . . 4 . . . . . . . . . 1 . . . . . . . . . . . . Robots Built . | . . . . . . . . . . . . . . . . . . . . . . . . . . . . . . . . . . . Authchips . | . . . . . . . . . . . . . . . . . . . . . . . . . . . . . . . . . . . Time . | . . . . . . . . . . . . . . . . . . . . . . . . . . . . . . . . . . . Total Robot Build Rating . | . . . . . . . . . . . . . . . . . . . . . . . . . . . . . . . . . . . Part Schematics Acquired 19 | . . . . . . . . . . . . 14 . . . . . . . . . 1 . . . . . . . 4 . . . . Parts Built 2 | . . . . . . . . . . . . . . . . . . . . . . 2 . . . . . . . . . . . . Authchips . | . . . . . . . . . . . . . . . . . . . . . . . . . . . . . . . . . . . Time 47 | . . . . . . . . . . . . . . . . . . . . . . 47 . . . . . . . . . . . . Total Part Build Rating 10 | . . . . . . . . . . . . . . . . . . . . . . 10 . . . . . . . . . . . . Part Studies Acquired 15 | . . . 3 . . . . . . . . . . . 2 . . . . . . . . . . . 7 . . . . 1 . 2 Parts Repaired 4 | . . . 1 . . . . 1 1 . . . . . . . . . . . . . . . . . 1 . . . . . . . Time 195 | . . . 64 . . . . 51 26 . . . . . . . . . . . . . . . . . 54 . . . . . . . Parts Recycled . | . . . . . . . . . . . . . . . . . . . . . . . . . . . . . . . . . . . Recycled Matter . | . . . . . . . . . . . . . . . . . . . . . . . . . . . . . . . . . . . Retrieved Matter . | . . . . . . . . . . . . . . . . . . . . . . . . . . . . . . . . . . . Retrieved Components 20 | . . . 9 . . . . . . . . . . . . . 1 10 . . . . . . . . . . . . . . . . Parts Scanalyzed . | . . . . . . . . . . . . . . . . . . . . . . . . . . . . . . . . . . . Part Schematics Acquired . | . . . . . . . . . . . . . . . . . . . . . . . . . . . . . . . . . . . Parts Damaged . | . . . . . . . . . . . . . . . . . . . . . . . . . . . . . . . . . . . Bothacking | -11 -10 -10 -9 -9 -9 -8 -8 -8 -7 -7 -7 -7 -7 -6 -6 -6 -6 -6 -6 -6 -6 -5 -5 -5 -5 -4 -4 -4 -4 -4 -3 -3 -3 -3 ------------ Run | Yrd Mat Min Mat Min Exi Min Mat Sto Fac Low Low Zio Dee Pro Fac Was Fac Ext Cet Arc Hub Fac Upp Upp War Pro Fac Upp Upp Zhi Pro Res Qua Frg Used RIF Installer . | . . . . . . . . . . . . . . . . . . . . . . . . . . . . . . . . . . . Robots Hacked . | . . . . . . . . . . . . . . . . . . . . . . . . . . . . . . . . . . . Non-combat . | . . . . . . . . . . . . . . . . . . . . . . . . . . . . . . . . . . . Combat . | . . . . . . . . . . . . . . . . . . . . . . . . . . . . . . . . . . . Robot Hacks Applied . | . . . . . . . . . . . . . . . . . . . . . . . . . . . . . . . . . . . Relay Couplers Released 2 | . . . . . . . . . . . . . . . . . . . . . 2 . . . . . . . . . . . . . Machine Destruction 2 | . . . . . . . . . . . . . . . . . . . . . 2 . . . . . . . . . . . . . Fabnet Peak Effective % . | . . . . . . . . . . . . . . . . . . . . . . . . . . . . . . . . . . . Robots Rewired 25 | . . . . . . . . . . . 3 . . 6 . . . 11 . . . . . . 5 . . . . . . . . . Allies Hacked 3 | . . . . . . . . . . . . . . 1 . . . . . . . 1 . . 1 . . . . . . . . . Hacks Repelled . | . . . . . . . . . . . . . . . . . . . . . . . . . . . . . . . . . . . Allies | -11 -10 -10 -9 -9 -9 -8 -8 -8 -7 -7 -7 -7 -7 -6 -6 -6 -6 -6 -6 -6 -6 -5 -5 -5 -5 -4 -4 -4 -4 -4 -3 -3 -3 -3 -------- Run | Yrd Mat Min Mat Min Exi Min Mat Sto Fac Low Low Zio Dee Pro Fac Was Fac Ext Cet Arc Hub Fac Upp Upp War Pro Fac Upp Upp Zhi Pro Res Qua Frg Total Allies 62 | . . 1 . . . . . 2 . 3 3 9 . 7 . . 1 24 5 . . 2 . . 5 . . . . . . . . . Largest Group 19 | . . 1 . . . . . 2 1 3 3 12 12 13 . . 1 19 17 15 10 2 . . 5 . . . . . . . . . Highest-Rated Group 938 | . . 31 . . . . . 62 28 60 90 352 352 339 . . 10 729 938 826 566 136 . . 264 . . . . . . . . . Highest-Rated Ally 159 | . . 31 . . . . . 31 28 20 30 51 51 50 . . 10 159 159 137 96 68 . . 64 . . . . . . . . . Total Orders 15 | . . . . . . . . . . . . . 1 . . . . . . 2 2 4 . . 6 . . . . . . . . . STAY 7 | . . . . . . . . . . . . . 1 . . . . . . 1 1 . . . 4 . . . . . . . . . ROAM 2 | . . . . . . . . . . . . . . . . . . . . . 1 . . . 1 . . . . . . . . . FOLLOW 2 | . . . . . . . . . . . . . . . . . . . . 1 . . . . 1 . . . . . . . . . EXPLORE 3 | . . . . . . . . . . . . . . . . . . . . . . 3 . . . . . . . . . . . . RETURN 1 | . . . . . . . . . . . . . . . . . . . . . . 1 . . . . . . . . . . . . Ally Attacks 591 | . . 11 . . . . . 41 17 . 3 . 93 82 . . . 152 50 38 54 34 . . 16 . . . . . . . . . Total Damage 12472 | . . 208 . . . . . 604 191 . 76 . 1313 1374 . . . 2533 1223 1215 1253 2125 . . 357 . . . . . . . . . Kills 114 | . . 4 . . . . . 8 1 . 1 . 14 14 . . . 27 11 6 11 16 . . 1 . . . . . . . . . Allies Corrupted 2 | . . . . . . . . . . . . . . . . . . . . . 2 . . . . . . . . . . . . . Allies Melted . | . . . . . . . . . . . . . . . . . . . . . . . . . . . . . . . . . . . Intel | -11 -10 -10 -9 -9 -9 -8 -8 -8 -7 -7 -7 -7 -7 -6 -6 -6 -6 -6 -6 -6 -6 -5 -5 -5 -5 -4 -4 -4 -4 -4 -3 -3 -3 -3 ------- Run | Yrd Mat Min Mat Min Exi Min Mat Sto Fac Low Low Zio Dee Pro Fac Was Fac Ext Cet Arc Hub Fac Upp Upp War Pro Fac Upp Upp Zhi Pro Res Qua Frg Active Infowar (turns) 32246 | . 1055 1383 1873 2214 500 970 2453 1045 875 843 862 1049 1039 2073 1083 80 1291 915 . 93 456 1114 702 890 947 624 791 753 648 162 751 933 885 894 Optics 4219 | . . . . . . . . . . . . . . . 394 80 1291 484 . . . . . . . . . . . . . 191 885 894 Sensors 18236 | . . 2 . . . . . . . 742 862 1049 1039 2073 1049 46 791 676 . 93 456 1114 702 890 947 624 791 753 648 162 751 930 586 460 Terrain 1 | . . . . 1 . . . . . . . . . . . . . . . . . . . . . . . . . . . . . . Structural 897 | . 897 . . . . . . . . . . . . . . . . . . . . . . . . . . . . . . . . . Traps 396 | . . . . . . . 396 . . . . . . . . . . . . . . . . . . . . . . . . . . . Seismic 11494 | . 158 1381 1873 2213 500 970 2188 1045 875 101 . . . . . . . . . . . . . . . . . . . . . 2 2 186 T.N.C. 69 | . . . . . . . . . . . . . . . 20 49 . . . . . . . . . . . . . . . . . . Machine Analysis 364 | . . . . . . . . . . . . . . . . . . . . . . . . . . . . . . . . . 202 162 Jamming 111 | . . . . . . . . . . . . . . . . . 111 . . . . . . . . . . . . . . . . . ECM 413 | . . . . . . . . . . . . . . . . . 413 . . . . . . . . . . . . . . . . . Robot Analysis Total 4 | . . . . . . . . . . . . . . . . . . . . . . . . . . . . . . 4 . . . . Derelict Logs Recovered 16 | . . 2 . 2 . . . . . 3 1 1 . 2 . . . . . . . . . 1 . 1 . 1 2 . . . . . Drone Launches 3 | . . . . . . . . . . . . . . . . . . . . . . 3 . . . . . . . . . . . . Drone Recoveries 1 | . . . . . . . . . . . . . . . . . . . . . . 1 . . . . . . . . . . . . Exploration | -11 -10 -10 -9 -9 -9 -8 -8 -8 -7 -7 -7 -7 -7 -6 -6 -6 -6 -6 -6 -6 -6 -5 -5 -5 -5 -4 -4 -4 -4 -4 -3 -3 -3 -3 ------------- Run | Yrd Mat Min Mat Min Exi Min Mat Sto Fac Low Low Zio Dee Pro Fac Was Fac Ext Cet Arc Hub Fac Upp Upp War Pro Fac Upp Upp Zhi Pro Res Qua Frg Turns Passed 39858 | 116 2460 1602 2457 2302 500 1141 3373 1385 1031 899 977 1052 1183 2339 1104 80 1291 1306 469 473 588 1283 702 918 1568 730 1042 829 737 192 877 1073 885 894 Spaces Moved 22111 | 50 796 650 1159 554 256 575 1286 594 613 659 631 812 591 1614 801 61 724 743 213 167 317 901 569 667 987 521 618 664 605 157 668 836 514 538 Core 5 | 5 . . . . . . . . . . . . . . . . . . . . . . . . . . . . . . . . . . Treads 3220 | 45 796 650 1159 536 34 . . . . . . . . . . . . . . . . . . . . . . . . . . . . . Legs 18886 | . . . . 18 222 575 1286 594 613 659 631 812 591 1614 801 61 724 743 213 167 317 901 569 667 987 521 618 664 605 157 668 836 514 538 Wheels . | . . . . . . . . . . . . . . . . . . . . . . . . . . . . . . . . . . . Hover . | . . . . . . . . . . . . . . . . . . . . . . . . . . . . . . . . . . . Flight . | . . . . . . . . . . . . . . . . . . . . . . . . . . . . . . . . . . . Fastest Speed 50 | 50 160 160 160 160 175 175 176 127 124 122 122 124 124 122 111 111 105 108 114 114 111 114 114 114 110 112 103 103 102 106 110 108 105 105 Average Speed 136 | 149 198 193 160 256 194 175 180 152 124 123 133 124 171 124 118 112 127 112 114 114 114 116 116 116 114 112 105 103 105 108 110 109 107 107 Slowest Speed 320 | 160 240 240 160 320 320 175 185 200 126 192 192 124 194 194 122 115 245 124 114 114 117 117 117 117 187 112 112 103 106 113 113 111 108 111 Overloaded Moves . | . . . . . . . . . . . . . . . . . . . . . . . . . . . . . . . . . . . Propulsion Burnouts . | . . . . . . . . . . . . . . . . . . . . . . . . . . . . . . . . . . . Robots Hopped . | . . . . . . . . . . . . . . . . . . . . . . . . . . . . . . . . . . . Potential Cave-ins 33 | . . . . . . . . . . . . . . . 2 . . . . . . . . 9 3 . 2 . . . 2 . . 15 Cave-ins Triggered 3 | . . . . . . . . . . . . . . . . . . . . . . . . 1 . . . . . . . . . 2 Exploration Rate (%) 63 | 4 97 98 77 98 69 91 79 95 20 81 90 87 67 93 23 73 14 84 66 80 27 19 70 72 89 55 15 79 82 60 74 18 44 20 Regions Visited 34 Branch Regions 24 Pre-discovered Areas 21 | . 5 2 2 2 1 . . . . . . 3 . . . . . . . . . . . 1 . 1 . 1 . 3 . . . . Known Exits Taken 26 | . . . 1 . . 1 1 1 1 1 1 1 1 1 . . 1 1 1 1 1 1 1 1 1 1 1 1 1 1 1 1 . . Unknown Exits Taken 6 | 1 1 1 . 1 1 . . . . . . . . . . . . . . . . . . . . . . . . . . . 1 . Scrap Searched 26 | . . 1 . 1 . 1 . . . 3 3 3 . 1 . . . . . . . . 2 3 . . . 5 2 . 1 . . . Spaces Dug 128 | . . . 2 . . . 3 4 . . . . 2 16 9 . 9 . . . 5 12 10 2 . 6 17 5 2 . 7 1 5 11 Terrain Destroyed 1486 | . 9 12 65 43 . 25 69 89 27 69 184 . 2 106 51 . 50 10 . . 5 34 13 19 . 55 144 66 40 . 58 31 100 110 Melee 28 | . . . 2 . . . 2 . . . . . 2 . . . . . . . 5 12 4 1 . . . . . . . . . . Projectile 474 | . . . . . . . 14 18 . . 1 . . 32 22 . 27 10 . . . . 9 18 . 55 70 44 14 . 21 30 30 59 AOE 983 | . 9 12 63 43 . 25 53 71 27 69 183 . . 74 29 . 23 . . . . 22 . . . . 74 22 26 . 37 . 70 51 Terrain Rammed . | . . . . . . . . . . . . . . . . . . . . . . . . . . . . . . . . . . . Walls Destroyed . | . . . . . . . . . . . . . . . . . . . . . . . . . . . . . . . . . . . Machines Disabled . | . . . . . . . . . . . . . . . . . . . . . . . . . . . . . . . . . . . Actions | -11 -10 -10 -9 -9 -9 -8 -8 -8 -7 -7 -7 -7 -7 -6 -6 -6 -6 -6 -6 -6 -6 -5 -5 -5 -5 -4 -4 -4 -4 -4 -3 -3 -3 -3 --------- Run | Yrd Mat Min Mat Min Exi Min Mat Sto Fac Low Low Zio Dee Pro Fac Was Fac Ext Cet Arc Hub Fac Upp Upp War Pro Fac Upp Upp Zhi Pro Res Qua Frg Total 29781 | 76 1482 939 1555 1409 260 642 2094 948 827 721 719 856 716 1870 914 69 967 1154 440 443 515 1081 593 780 1417 603 885 747 674 179 769 936 776 725 Wait 4734 | 11 520 232 164 821 . 17 517 207 133 28 11 31 67 83 44 . 117 206 206 261 136 73 2 73 290 33 126 16 25 . 39 17 182 46 Move 22075 | 49 795 649 1158 553 255 574 1285 593 612 658 630 811 590 1613 801 60 723 742 212 166 316 900 568 665 986 520 617 663 604 156 667 835 513 536 Hop . | . . . . . . . . . . . . . . . . . . . . . . . . . . . . . . . . . . . Pick Up 224 | 3 24 4 26 2 2 3 26 10 20 3 1 1 4 6 6 . 5 5 . . 7 12 2 . 14 1 6 3 6 2 7 7 3 3 Fast Attach 238 | 6 10 2 8 3 . . 23 6 3 2 1 4 6 8 6 5 28 14 2 4 6 9 2 . 25 . 7 7 2 8 . 12 3 16 Attach 71 | . 4 . 2 3 1 2 4 2 2 1 1 . 2 1 2 . 5 1 . . 3 13 . 2 . 2 7 . 3 . 1 1 2 4 Detach 48 | . . 1 . . . . 2 . . 1 . 2 3 . 1 1 . 1 . 1 4 12 . . 7 . 3 1 . 2 . 1 1 4 Swap 566 | . 17 15 62 10 . 16 67 40 23 12 23 1 10 20 14 1 17 29 8 1 10 9 2 11 15 15 22 10 10 2 16 17 17 24 Drop 370 | . 12 5 37 3 2 . 42 20 7 4 2 5 10 20 10 1 12 24 9 2 9 11 4 3 39 1 8 8 5 9 10 21 8 7 Fire 1081 | 7 98 23 87 13 . 28 120 70 25 12 19 . 22 58 30 1 60 25 . . . 4 9 19 . 30 86 39 19 . 29 24 42 82 Melee 121 | . . . 6 . . . 2 . . . 3 1 2 . . . . 21 3 8 24 37 4 6 3 1 . . . . . . . . Ram . | . . . . . . . . . . . . . . . . . . . . . . . . . . . . . . . . . . . Kick 21 | . . . . . . 2 6 . 2 . . . . . . . . 4 . . . . . . . . 3 . . . . 1 2 1 Crush 13 | . 2 5 5 1 . . . . . . . . . . . . . . . . . . . . . . . . . . . . . . Escape Stasis 6 | . . . . . . . . . . . . . . . . . . . . . . . . 1 . . . . . . . . 3 2 Rewire 202 | . . . . . . . . . . . 28 . . 61 . . . 82 . . . 1 . . 30 . . . . . . . . . Trap 3 | . . 3 . . . . . . . . . . . . . . . . . . . . . . . . . . . . . . . . Miscellaneous 8 | . . . . . . . . . . . . . . . . . . . . . . . . . 8 . . . . . . . . . Route ------- -11/Scrapyard -10/Materials (discovered 5 exits: *Mat x3 / [*Min x2]) -10/Mines (discovered 3 exits: *Mat x2 / [*Sub]) -9/Materials (discovered 4 exits: *Mat x3 / *Min) -9/Mines (discovered 4 exits: *Mat x2 / *Exi / *Zio) -9/Exiles -8/Mines (discovered 2 exits: *Mat x2) -8/Materials (discovered 4 exits: *Fac x3 / *Sto) -8/Storage (discovered 2 exits: *Fac / Rec) -7/Factory (discovered 2 exits: *Low x2) -7/Lower Caves -7/Lower Caves (discovered 2 exits: *Fac / *Zio) -7/Zion (discovered 2 exits: *Dee / *Pro) -7/Deep Caves -6/Proximity Caves -6/Factory (discovered 2 exits: Fac x2) -6/Waste -6/Factory -6/Extension (discovered 2 exits: *Fac / *Cet) -6/Cetus (discovered 2 exits: *Fac / *Arc) -6/Archives (discovered 2 exits: *Fac / *Hub) -6/Hub_04(d) (discovered 2 exits: *Fac x2) -5/Factory (discovered 2 exits: *Upp x2) -5/Upper Caves -5/Upper Caves -5/Warlord -4/Proximity Caves -4/Factory (discovered 2 exits: *Upp x2) -4/Upper Caves -4/Upper Caves (discovered 2 exits: *Res / *Zhi) -4/Zhirov -3/Proximity Caves -3/Research (discovered 3 exits: *Arm / *Qua x2) -3/Quarantine (discovered 3 exits: Res / [*Sec] / *Frg) -3/Protoforge History --------- Turn | Location | Event 4 | -11/Scrapyard | Discovered new exit (range 15) 117 | -11/Scrapyard | Entered Materials 220 | -10/Materials | Discovered new exit (range 7) 328 | -10/Materials | Build established: Mutant 398 | -10/Materials | Discovered new exit (range 16) 595 | -10/Materials | Discovered new exit (range 12) 631 | -10/Materials | Discovered new exit (range 11) 1126 | -10/Materials | Core integrity fell below 50% 1391 | -10/Materials | Discovered new exit (range 10) 2038 | -10/Materials | Build established: Scavenger-Mutant 2415 | -10/Materials | Learned Storage emergency access door positions 2577 | -10/Materials | Entered Mines 2606 | -10/Mines | Joined a pair of Derelicts in attacking an 0b10 outpost 2942 | -10/Mines | Build established: Mutant 3074 | -10/Mines | Discovered new exit (range 5) 3348 | -10/Mines | Found a hidden stash of uninstalled traps 3477 | -10/Mines | Received a Mining Laser from a helpful Derelict 3553 | -10/Mines | Discovered new exit (range 6) 3661 | -10/Mines | Excavation squad dispatched 3661 | -10/Mines | A large section of the Mines collapsed 4040 | -10/Mines | Discovered new exit (range 12) 4094 | -10/Mines | Found a damaged Exp. Sensor Array with a note attached 4098 | -10/Mines | Found Prototype Device 4098 | -10/Mines | Identified Exp. Sensor Array 4130 | -10/Mines | Core integrity fell below 20% 4179 | -10/Mines | Entered Materials 4179 | -9/Materials | Evolved 2 slots: Propulsion x1, Weapon x1 4492 | -9/Materials | Build established: Scavenger-Gunner 5270 | -9/Materials | Discovered new exit (range 16) 5364 | -9/Materials | Repaired Broken Hvy. Ion Engine 5668 | -9/Materials | Discovered new exit (range 12) 5797 | -9/Materials | Discovered new exit (range 12) 5910 | -9/Materials | Identified exit to Mines 6157 | -9/Materials | Identified exit to Materials 6179 | -9/Materials | First assault squad dispatched 6238 | -9/Materials | Loaded intel: 3 trap records 6309 | -9/Materials | Learned 2 Storage zone layouts 6369 | -9/Materials | Learned location of 2 exits from Materials 6421 | -9/Materials | Learned location of 2 exits from Materials 6462 | -9/Materials | Learned location of Recycling (-8) 6576 | -9/Materials | Learned Storage garrison access intel 6636 | -9/Materials | Entered Mines 6730 | -9/Mines | Assembled infested the area 6731 | -9/Mines | Learned location of Zion (-7) 7986 | -9/Mines | Build established: Gunner 7988 | -9/Mines | A Derelict revealed a hidden shortcut to a safe place 8117 | -9/Mines | Received a Rocket Launcher from a helpful Derelict 8925 | -9/Mines | Deemed a non-threat by the Exiles lab entrance 8925 | -9/Mines | Discovered new exit (range 5) 8938 | -9/Mines | Entered Exiles 9018 | -9/Exiles | Met 8R-AWN 9061 | -9/Exiles | Met EX-HEX 9160 | -9/Exiles | Met EX-DEC 9194 | -9/Exiles | Visited The Gauntlet 9422 | -9/Exiles | Discovered new exit (range 11) 9438 | -9/Exiles | Entered Mines 9545 | -8/Mines | Core integrity fell below 50% 10532 | -8/Mines | Discovered exit to Materials (range 6) 10562 | -8/Mines | Discovered exit to Materials (range 10) 10579 | -8/Mines | Entered Materials 10579 | -8/Materials | Evolved 2 slots: Propulsion x1, Utility x1 10580 | -8/Materials | Identified exit to Factory 10580 | -8/Materials | Identified exit to Storage 10687 | -8/Materials | Garrison activated, responded to threat 11423 | -8/Materials | Build established: Scavenger-Gunner 12459 | -8/Materials | Build established: Scavenger-Tank 13952 | -8/Materials | Entered Storage 13953 | -8/Storage | Identified exit to Recycling 13955 | -8/Storage | Loaded intel: 1 garrison access location 14704 | -8/Storage | Repaired Hvy. Ion Engine 15010 | -8/Storage | Build established: Tank 15075 | -8/Storage | Met a pair of Derelict thieves 15248 | -8/Storage | Core integrity fell below 50% 15312 | -8/Storage | Discovered exit to Factory (range 16) 15337 | -8/Storage | Entered Factory 15337 | -7/Factory | Accompanied by 1 ally 15337 | -7/Factory | Evolved 2 slots: Propulsion x1, Utility x1 15470 | -7/Factory | Repaired Hcp. Storage Unit 15802 | -7/Factory | Identified exit to Lower Caves 15823 | -7/Factory | Garrison activated, responded to threat 15838 | -7/Factory | P-60 Hacker assimilated allied 2H-GV2(g) 16234 | -7/Factory | Found Powered Armor 16368 | -7/Factory | Entered Lower Caves 16454 | -7/Lower Caves | Learned Factory terminal intel 16457 | -7/Lower Caves | Encountered a Warlord checkpoint 16569 | -7/Lower Caves | Learned Factory garrison access intel 16603 | -7/Lower Caves | Attracted the attention of an 0b10 checkpoint 16942 | -7/Lower Caves | Build established: Skirmisher 17058 | -7/Lower Caves | Entered an active Warlord outpost 17076 | -7/Lower Caves | Learned Research trap positions 17076 | -7/Lower Caves | Learned Factory terminal intel 17076 | -7/Lower Caves | Learned Armory terminal intel 17079 | -7/Lower Caves | A Commander dispatched an escort 17107 | -7/Lower Caves | Learned Factory terminal intel 17192 | -7/Lower Caves | Discovered new exit (range 13) 17208 | -7/Lower Caves | Identified exit to Lower Caves 17267 | -7/Lower Caves | Entered another Lower Caves area 17267 | -7/Lower Caves | Accompanied by 3 allies 17268 | -7/Lower Caves | Commander's escort returned to base 17268 | -7/Lower Caves | Commander's escort returned to base 17268 | -7/Lower Caves | Commander's escort returned to base 17329 | -7/Lower Caves | Discovered new exit (range 13) 17351 | -7/Lower Caves | Identified exit to Factory 17879 | -7/Lower Caves | Attacked by a delusional Derelict stockpiling Unaware 18084 | -7/Lower Caves | Discovered new exit (range 6) 18089 | -7/Lower Caves | Identified exit to Zion 18114 | -7/Lower Caves | Build established: Mutant 18244 | -7/Lower Caves | Entered Zion 18244 | -7/Zion | Accompanied by 3 allies 18303 | -7/Zion | Discovered new exit (range 12) 18317 | -7/Zion | Identified exit to Proximity Caves 18578 | -7/Zion | Learned location of Armory (-3) 18698 | -7/Zion | Acquired unknown access codes intercepted by a Zionite 18724 | -7/Zion | Met Imprinter 18784 | -7/Zion | Learned location of Warlord (-5) 18801 | -7/Zion | Learned location of 1 exit from Factory 18804 | -7/Zion | Gained Derelict followers 18908 | -7/Zion | Gained Derelict followers 18978 | -7/Zion | Found CR-A16's Pointy Stick 18997 | -7/Zion | Learned Factory emergency access door positions 19244 | -7/Zion | Opened final containment barrier to the Deep Caves 19263 | -7/Zion | Discovered new exit (range 3) 19263 | -7/Zion | Saw the warning signs outside the Deep Caves entrance 19265 | -7/Zion | Identified exit to Deep Caves 19296 | -7/Zion | Entered Deep Caves 19296 | -7/Deep Caves | Accompanied by 12 allies 19534 | -7/Deep Caves | Z-Facility disabled 19537 | -7/Deep Caves | Attacked by Z-Imprinter 19557 | -7/Deep Caves | Allies destroyed Z-Imprinter 19590 | -7/Deep Caves | Lost 4 allies 20205 | -7/Deep Caves | Build established: Skirmisher 20453 | -7/Deep Caves | Discovered new exit (range 7) 20465 | -7/Deep Caves | Identified exit to Proximity Caves 20479 | -7/Deep Caves | Entered Proximity Caves 20479 | -6/Proximity Caves | Accompanied by 7 allies 20480 | -6/Proximity Caves | Greeted by an Infiltrator in a former 0b10 base 20702 | -6/Proximity Caves | Former 0b10 base attacked by MAIN.C 20821 | -6/Proximity Caves | Learned 8 Factory zone layouts 20974 | -6/Proximity Caves | Build established: Commander-Skirmisher 21073 | -6/Proximity Caves | Lost 15 allies 21074 | -6/Proximity Caves | Destroyed 7 combat bots 21079 | -6/Proximity Caves | 0b10 base defense nominally successful 21495 | -6/Proximity Caves | Build established: Scavenger-Skirmisher 21819 | -6/Proximity Caves | Learned 12 Factory zone layouts 22387 | -6/Proximity Caves | Attracted the attention of an 0b10 outpost 22754 | -6/Proximity Caves | Discovered exit to Factory (range 9) 22818 | -6/Proximity Caves | Entered Factory 22818 | -6/Factory | Evolved 2 slots: Utility x2 22819 | -6/Factory | Identified exit to Factory 22822 | -6/Factory | Loaded intel: 28 terminal locations 22823 | -6/Factory | Loaded intel: 4 garrison access locations 23630 | -6/Factory | Central database locked down 23922 | -6/Factory | Sucked down chute 23922 | -6/Factory | Entered Waste 23930 | -6/Waste | Found Prototype Hackware 23930 | -6/Waste | Identified Exp. Hacking Suite 23936 | -6/Waste | Spotted C-40 Crusher 23937 | -6/Waste | EMP discharged 23946 | -6/Waste | Spotted C-40 Crusher 23952 | -6/Waste | Spotted C-40 Crusher 23956 | -6/Waste | Spotted C-40 Crusher 23966 | -6/Waste | Spotted C-40 Crusher 23971 | -6/Waste | Crushed by Compactor (1 part destroyed, 2 dropped) 23971 | -6/Waste | Discovered new exit (range 22) 23972 | -6/Waste | Spotted C-40 Crusher 23976 | -6/Waste | Crushed by Compactor (1 part destroyed, 2 dropped) 23980 | -6/Waste | Crushed by Compactor (1 part destroyed, 1 dropped) 23983 | -6/Waste | Crushed by Compactor (1 part destroyed, 2 dropped) 23999 | -6/Waste | Identified exit to Factory 24002 | -6/Waste | Entered Factory 24003 | -6/Factory | Loaded intel: 28 terminal locations 24014 | -6/Factory | Lost 4 parts (1p2n1u) 24674 | -6/Factory | Lost 3 parts (1p1n1w) 24685 | -6/Factory | System corruption reached 10% 24782 | -6/Factory | Lost 3 parts (2n1u) 24973 | -6/Factory | Build established: Skirmisher 25075 | -6/Factory | Discovered new exit (range 19) 25291 | -6/Factory | Identified exit to Extension 25293 | -6/Factory | Entered Extension 25481 | -6/Extension | Rescued a captive Derelict 25482 | -6/Extension | Rescued a captive Derelict 25599 | -6/Extension | Rescued a captive Derelict 25600 | -6/Extension | Rescued a captive Derelict 25763 | -6/Extension | Rescued a captive Derelict 25763 | -6/Extension | Rescued a captive Derelict 25827 | -6/Extension | Rescued a captive Derelict 25828 | -6/Extension | Rescued a captive Derelict 25921 | -6/Extension | Build established: Commander-Gladiator 26119 | -6/Extension | Spotted B-75 Beast 26130 | -6/Extension | Spotted B-75 Beast 26135 | -6/Extension | Allies destroyed B-75 Beast 26150 | -6/Extension | Allies destroyed B-75 Beast 26177 | -6/Extension | Lost 3 parts (1n2w) 26192 | -6/Extension | Rescued a captive Derelict 26194 | -6/Extension | Rescued a captive Derelict 26286 | -6/Extension | Energy Cycler disabled 26288 | -6/Extension | Rescued a captive Derelict 26289 | -6/Extension | Rescued a captive Derelict 26289 | -6/Extension | Rescued a captive Derelict 26314 | -6/Extension | Watched by a mysterious "MATRIX" hacker 26331 | -6/Extension | Rescued A7 26430 | -6/Extension | Build established: Commander-Mutant 26530 | -6/Extension | Discovered exit to Factory (range 10) 26531 | -6/Extension | Discovered new exit (range 6) 26557 | -6/Extension | Identified exit to Cetus 26599 | -6/Extension | Entered Cetus 26599 | -6/Cetus | Accompanied by 17 allies (A7) 26604 | -6/Cetus | Acquired a Cetus Manufacturing Module code from A7 26622 | -6/Cetus | Spotted Cetus Guard 26623 | -6/Cetus | Spotted Cetus Guard 26623 | -6/Cetus | Spotted Cetus Guard 26633 | -6/Cetus | Allies destroyed Cetus Guard 26634 | -6/Cetus | Allies destroyed Cetus Guard 26638 | -6/Cetus | Allies destroyed Cetus Guard 26666 | -6/Cetus | Lost 6 allies 26741 | -6/Cetus | Escorted A7 to Cetus Mainframe 26751 | -6/Cetus | Started Cetus Manufacturing Module 26765 | -6/Cetus | Discovered new exit (range 15) 26776 | -6/Cetus | Manufactured an Enhanced Grunt 26781 | -6/Cetus | Identified exit to Archives 26801 | -6/Cetus | Manufactured an Enhanced Grunt 26826 | -6/Cetus | Manufactured an Enhanced Grunt 26851 | -6/Cetus | Manufactured an Enhanced Grunt 26876 | -6/Cetus | Manufactured an Enhanced Grunt 26943 | -6/Cetus | Spotted Cetus Guard 26943 | -6/Cetus | Spotted Cetus Guard 26948 | -6/Cetus | Spotted Cetus Guard 26948 | -6/Cetus | Spotted Cetus Guard 26955 | -6/Cetus | Discovered exit to Factory (range 16) 26959 | -6/Cetus | Core integrity fell below 50% 26960 | -6/Cetus | Allies destroyed Cetus Guard 26963 | -6/Cetus | Allies destroyed Cetus Guard 26965 | -6/Cetus | Allies destroyed Cetus Guard 26965 | -6/Cetus | Allies destroyed Cetus Guard 26966 | -6/Cetus | Met Revision 17 27068 | -6/Cetus | Entered Archives 27068 | -6/Archives | Accompanied by 15 allies (A7) 27073 | -6/Archives | Received a hacking code to weaken MAIN.C 27085 | -6/Archives | Build established: Commander-Gladiator 27119 | -6/Archives | Lost 4 allies 27132 | -6/Archives | Discovered exit to Factory (range 16) 27460 | -6/Archives | Discovered new exit (range 13) 27473 | -6/Archives | Identified exit to Hub_04(d) 27541 | -6/Archives | Entered Hub_04(d) 27541 | -6/Hub_04(d) | Accompanied by 10 allies 27615 | -6/Hub_04(d) | Discovered exit to Factory (range 16) 27851 | -6/Hub_04(d) | Network Hub disabled 27908 | -6/Hub_04(d) | Lost 5 allies 28022 | -6/Hub_04(d) | Build established: Scavenger-Gladiator 28073 | -6/Hub_04(d) | Discovered exit to Factory (range 12) 28093 | -6/Hub_04(d) | Network Hub disabled 28097 | -6/Hub_04(d) | Network Hub disabled 28119 | -6/Hub_04(d) | Network Hub disabled 28129 | -6/Hub_04(d) | Entered Factory 28129 | -5/Factory | Evolved 2 slots: Power x1, Utility x1 28130 | -5/Factory | Identified exit to Upper Caves 28131 | -5/Factory | Loaded intel: 26 terminal locations 28157 | -5/Factory | Lost 3 parts (2n1u) 28587 | -5/Factory | Fabricated Force Field (x2) 29016 | -5/Factory | Central database locked down 29387 | -5/Factory | Garrison activated, responded to threat 29412 | -5/Factory | Entered Upper Caves 30055 | -5/Upper Caves | Discovered new exit (range 11) 30113 | -5/Upper Caves | Identified exit to Upper Caves 30114 | -5/Upper Caves | Entered another Upper Caves area 30266 | -5/Upper Caves | Encountered a Warlord checkpoint 30329 | -5/Upper Caves | System corruption reached 10% 30726 | -5/Upper Caves | Discovered new exit (range 8) 30737 | -5/Upper Caves | Identified exit to Warlord 30976 | -5/Upper Caves | Crushed by falling debris 31032 | -5/Upper Caves | Entered Warlord 31068 | -5/Warlord | Discovered new exit (range 8) 31075 | -5/Warlord | Identified exit to Proximity Caves 31111 | -5/Warlord | System corruption cleaned by Quarantine Array 31334 | -5/Warlord | Found Prototype Special Weapon 31334 | -5/Warlord | Identified RU-N14's Throwing Claymores v3 31342 | -5/Warlord | Found RU-N14's Throwing Claymores v3 31402 | -5/Warlord | Found Prototype Device 31402 | -5/Warlord | Identified Minesniffer Drone Bay 31621 | -5/Warlord | Found Prototype Reactor 31621 | -5/Warlord | Identified Vortex Chain Reactor 31653 | -5/Warlord | Found Prototype Processor 31653 | -5/Warlord | Identified Exp. Armor Integrity Analyzer 31698 | -5/Warlord | Visited the Vortex Lab 31702 | -5/Warlord | Found Prototype Energy Gun 31702 | -5/Warlord | Identified Vortex Rail 31707 | -5/Warlord | Found Prototype Energy Cannon 31707 | -5/Warlord | Identified Vortex Cannon 31710 | -5/Warlord | Found Prototype Energy Cannon 31710 | -5/Warlord | Identified Vortex Driver 31714 | -5/Warlord | Warlord's base attacked by MAIN.C 31726 | -5/Warlord | Found Vortex Driver 32033 | -5/Warlord | Lost 3 allies 32064 | -5/Warlord | Warlord forces counterattacked 32082 | -5/Warlord | Spotted Striker 32118 | -5/Warlord | Spotted Striker 32122 | -5/Warlord | Spotted Striker 32152 | -5/Warlord | Spotted Striker 32189 | -5/Warlord | Spotted Executioner 32203 | -5/Warlord | Lost 16 allies 32214 | -5/Warlord | Spotted Striker 32215 | -5/Warlord | Spotted B-75 Beast 32220 | -5/Warlord | Spotted Executioner 32221 | -5/Warlord | Spotted B-86 Titan 32254 | -5/Warlord | Found Prototype Processor 32254 | -5/Warlord | Identified Exp. Core Analyzer 32268 | -5/Warlord | Found Prototype Device 32268 | -5/Warlord | Identified Adv. Kinecellerator 32270 | -5/Warlord | Lost 9 allies 32314 | -5/Warlord | P-70 Sage assimilated allied Archangel 6a 32314 | -5/Warlord | Spotted Striker 32314 | -5/Warlord | Spotted Striker 32336 | -5/Warlord | Spotted Striker 32389 | -5/Warlord | Warlord base infiltrated, sounded retreat 32402 | -5/Warlord | Found Exp. Targeting Computer 32453 | -5/Warlord | Spotted Executioner 32454 | -5/Warlord | Lost 13 allies 32462 | -5/Warlord | Met Warlord 32528 | -5/Warlord | Spotted Executioner 32541 | -5/Warlord | Lost 11 allies 32543 | -5/Warlord | Spotted Striker 32545 | -5/Warlord | Spotted Executioner 32552 | -5/Warlord | Build established: Scavenger-Tank 32588 | -5/Warlord | Attacked by Warlord forces 32589 | -5/Warlord | Spotted HU-A32(K) 32590 | -5/Warlord | Spotted Striker 32600 | -5/Warlord | Entered Proximity Caves 32603 | -4/Proximity Caves | Spotter reported a threat 32603 | -4/Proximity Caves | Spotter reported a threat 32611 | -4/Proximity Caves | Lost 4 allies 32983 | -4/Proximity Caves | Attracted the attention of an 0b10 checkpoint 33054 | -4/Proximity Caves | Spotter reported a threat 33321 | -4/Proximity Caves | Discovered new exit (range 2) 33324 | -4/Proximity Caves | Identified exit to Factory 33330 | -4/Proximity Caves | Entered Factory 33330 | -4/Factory | Evolved 2 slots: Utility x2 33477 | -4/Factory | Repaired Centrium Medium Armor Plating 33563 | -4/Factory | Found Prototype Processor 33563 | -4/Factory | Identified Exp. Signal Interpreter 33580 | -4/Factory | Search patrols dispatched 33583 | -4/Factory | Identified exit to Upper Caves 33621 | -4/Factory | Central database locked down 34080 | -4/Factory | First assault squad dispatched 34372 | -4/Factory | Entered Upper Caves 34443 | -4/Upper Caves | Build established: Scavenger-Gunner 34629 | -4/Upper Caves | Discovered new exit (range 7) 34635 | -4/Upper Caves | Identified exit to Upper Caves 34733 | -4/Upper Caves | Encountered a Warlord checkpoint 34994 | -4/Upper Caves | Attracted the attention of an 0b10 base 35054 | -4/Upper Caves | Learned Research garrison access intel 35201 | -4/Upper Caves | Entered another Upper Caves area 35205 | -4/Upper Caves | Discovered new exit (range 7) 35209 | -4/Upper Caves | Identified exit to Research 35280 | -4/Upper Caves | Attracted the attention of an 0b10 outpost 35329 | -4/Upper Caves | Destroyed 9 combat bots 35367 | -4/Upper Caves | System corruption reached 10% 35672 | -4/Upper Caves | Learned Research security intel 35689 | -4/Upper Caves | Learned Research terminal intel 35693 | -4/Upper Caves | Encountered a Warlord checkpoint 35780 | -4/Upper Caves | Discovered new exit (range 13) 35821 | -4/Upper Caves | Identified exit to Zhirov 35938 | -4/Upper Caves | Entered Zhirov 35938 | -4/Zhirov | Discovered new exit (range 3) 35941 | -4/Zhirov | Identified exit to Proximity Caves 35958 | -4/Zhirov | Met Zhirov 35983 | -4/Zhirov | Learned location of Quarantine (-3) 35983 | -4/Zhirov | Learned location of Testing (-2) 35983 | -4/Zhirov | Learned location of Command (-1) 35989 | -4/Zhirov | Zhirov requested help retrieving the SGEMP Prototype 36007 | -4/Zhirov | Found Alien Artifact 36007 | -4/Zhirov | Identified Integrated Dissipator 36007 | -4/Zhirov | Installed Integrated Dissipator, increased core heat dissipation (+20) 36023 | -4/Zhirov | Found Alien Artifact 36130 | -4/Zhirov | Entered Proximity Caves 36133 | -3/Proximity Caves | Spotter reported a threat 36133 | -3/Proximity Caves | Spotter reported a threat 36863 | -3/Proximity Caves | System corruption reached 30% 36998 | -3/Proximity Caves | Discovered exit to Research (range 8) 37007 | -3/Proximity Caves | Entered Research 37007 | -3/Research | Evolved 2 slots: Utility x1, Weapon x1 37008 | -3/Research | Loaded intel: 104 trap records 37010 | -3/Research | Loaded intel: 25 terminal locations 37011 | -3/Research | Loaded intel: 3 garrison access locations 37035 | -3/Research | Targeted by mysterious "MATRIX" hacker 37101 | -3/Research | Identified exit to Armory 37101 | -3/Research | Identified exit to Quarantine 37207 | -3/Research | Revision forces began assault on 0b10 37241 | -3/Research | Met up with Revision 17++ 37401 | -3/Research | Lost 3 allies 37537 | -3/Research | Central database locked down 37707 | -3/Research | Research terminal network offline 38080 | -3/Research | Entered Quarantine 38123 | -3/Quarantine | Identified exit to Research 38145 | -3/Quarantine | Found Alien Artifact 38145 | -3/Quarantine | Identified Phase Redirector 38221 | -3/Quarantine | Found Alien Artifact 38226 | -3/Quarantine | Found Alien Artifact 38333 | -3/Quarantine | Destroyed 8 combat bots 38567 | -3/Quarantine | Found Alien Artifact 38567 | -3/Quarantine | Identified Phase Armor 38724 | -3/Quarantine | Unchained authorized (1B-0RG) 38883 | -3/Quarantine | Spotted Fortress 38956 | -3/Quarantine | Discovered new exit (range 5) 38956 | -3/Quarantine | Discovered new exit (range 6) 38965 | -3/Quarantine | Entered Protoforge 39085 | -3/Protoforge | Superfortress began startup sequence 39243 | -3/Protoforge | Central database locked down 39556 | -3/Protoforge | Core integrity fell below 50% 39623 | -3/Protoforge | Core integrity fell below 20% 39651 | -3/Protoforge | Destroyed 13 combat bots 39656 | -3/Protoforge | Lost 8 parts (1p1n3u3w) 39678 | -3/Protoforge | Found Prototype Device 39678 | -3/Protoforge | Identified Cep. Recoil Nullifier 39688 | -3/Protoforge | Found Prototype Device 39688 | -3/Protoforge | Identified Cep. Antimissile System 39703 | -3/Protoforge | Found Prototype Ballistic Gun 39703 | -3/Protoforge | Identified Cep. XC Strikerail 39706 | -3/Protoforge | Found Cep. XC Strikerail 39739 | -3/Protoforge | Identified Terrabomb (x2) 39739 | -3/Protoforge | Used Terrabomb 39739 | -3/Protoforge | Additional patrols dispatched to research labs 39750 | -3/Protoforge | Crushed by falling debris 39754 | -3/Protoforge | Crushed by falling debris 39785 | -3/Protoforge | Lost 3 parts (1n2u) 39802 | -3/Protoforge | Found Prototype Device 39802 | -3/Protoforge | Identified Exp. System Purifier 39809 | -3/Protoforge | Found Prototype Device 39809 | -3/Protoforge | Identified Crosscalibrator 39816 | -3/Protoforge | Spotted Immortal 39816 | -3/Protoforge | Spotted Immortal 39820 | -3/Protoforge | Spotted Immortal 39821 | -3/Protoforge | Spotted Immortal 39834 | -3/Protoforge | Destroyed Immortal 39850 | -3/Protoforge | Destroyed Immortal 39859 | -3/Protoforge | Destroyed by Immortal with Experimental Jetlance Last Messages --------------- 39802_ Acquired Prototype Device. 39802_ Identified Exp. System Purifier. 39808_ System corrupted: Energy discharge (-692). 39809_ Acquired Prototype Device. 39809_ Identified Crosscalibrator. 39827_ System corrupted: Component data lost. 39830_ Immortal springs to life. 39834_ Immortal system terminally corrupted. 39834_ Prototype Processor fried. 39834_ Prototype Piercing Weapon fried. 39842_ System corrupted: Matter fused (-10). 39849_ Destroyed Prototype Device. 39850_ Immortal system terminally corrupted. 39850_ Cep. Antimissile System fried. 39850_ Critical hit (Impale). 39852_ Adv. VSS Leg+ destroyed. 39854_ Critical hit (Impale). 39854_ Cep. Recoil Nullifier destroyed. 39856_ Critical hit (Impale). Map ----- +----------------------------------------------------+ | ?????????????????????????????????????????????????? | | ?????????????????????????????????????????????????? | | ?????????????????????????????????????????????????? | | ????????????????????????????????????????? ??????? | | ????????????????????????????????????????? ??????? | | ????????????????????????????????????????? ??????? | | ????????????????????????????????????????" ??????? | | ????????????????????????????????????????" #?????? | | ????????????????????????????????????????" #?????? | | ????????????????????????????????????????" #?????? | | ????????????????????????????????????????" #?????? | | ????????????????????????????????????????" #?????? | | ????????????????????????????????????????" #?????? | | ????????????????????????????????????????" #?????? | | ????????????????????????????????????????" #?????? | | ????????????????????????????????????????# #?????? | | ????????????????????????????????????????# #?????? | | ????????????????????????????????????????# #?????? | | ????????????????????????????????????????# #?????? | | ????????????????????????????????????????# #?????? | | ????????????????????????????????????????# #?????? | | ????????????????#???????????????????????# #?????? | | ?????# ######### ###################### ####### | | ?????# ! | | ?????# *=! l | | ?????# !=%!! /l@ | | ?????????????###############++###################+ | | ????????????????????????# " !"#???????????# | | ????????????????????????# !"#???????###?# | | ????????????????????????# "#?####### ### " | | ????????????????????????#" !"### " " | | ????????????????????????#" T" ## " "" | | ????????????????????????#" "" "" " | | ????????????????????????#" """" "" """"" | | ????????????????????????#""""""""" | | ????????????????????????####"""""" | | ?????????????????????????## | | ?????????????????????????# | | ????????????????????????## # | | ????????????????????????# | | ???????????????????????##"""""""""""""""""#""""""" | | ???????????????????????# | | ??????????????????????##"""""""""""""""""""""""""" | | ??????????????????????# | | ??????????????????????# | | ??????????????????????# | | ??????????????????????# | | ??????????????????????# """""" """""" | | ??????????????????????# """""" """""" | | ?????????????????????# "" !!""""" ==="""" | +----------------------------------------------------+ Best States ------------- Heat Dissipation 92 Energy Generation 55 Energy Capacity 2700 Matter Stores 300 Matter Capacity 300 Sight Range 23 Robot Scan Range 20 Terrain Scan Density 10 ECM Strength 1 Jamming Range 12 Armor Coverage 675 Point Defense Rating 480 Melee Speed Boost 40 Evasion (%) 69 Targeting Accuracy 12 Melee Accuracy 8 Launcher Accuracy 60 Core Analysis 8 Recoil Reduction 99 Matter Filtering 30 Particle Charging 15 Kinecelleration 50 Salvage Targeting 1 Offensive Hacking 22 Item Schematics ----------------- Flak Gun | -7/Zion | Archive Magnetic Acceleration Cannon | -7/Zion | Archive Med. Treads | -7/Zion | Archive Jamming Amplifier | -7/Zion | Archive Mass Driver | -7/Zion | Archive Imp. Carbon-fiber Leg | -7/Zion | Archive Force Field | -7/Zion | Archive Imp. Heavy Armor Plating | -7/Zion | Archive Transmission Jammer | -7/Zion | Archive Stasis Canceller | -7/Zion | Archive Imp. Recalibrator | -7/Zion | Archive Dynamic Insulation System | -7/Zion | Archive Phase Cannon | -7/Zion | Archive Imp. Trap Extractor | -7/Zion | Archive Adv. Cooling System | -5/Factory | Hacked Assault Drone Bay | -4/Zhirov | Free Exp. Heat Sink | -4/Zhirov | Free Exp. Optical Array | -4/Zhirov | Free Imp. Arc Thrower | -4/Zhirov | Free Robot Schematics ------------------ G-47 Trooper | -7/Zion | Archive T-07 Excavator | -7/Zion | Archive M-28 Smith | -7/Zion | Archive C-57 Dissector | -7/Zion | Archive B-60 Warrior | -5/Factory | Hacked Fabricated ------------ Force Field | x2 | -5/Factory Repaired ---------- Hvy. Ion Engine | 81% | -9/Materials | Broken Hvy. Ion Engine | 37% | -8/Storage Hcp. Storage Unit | 65% | -7/Factory Centrium Medium Armor Plating | 19% | -4/Factory Studied --------- Imp. Aluminum Leg | -9/Materials | Hacked Aluminum Leg | -9/Materials | Hacked Assault Rifle | -9/Materials | Hacked Imp. Carbon-fiber Leg | -6/Factory | Hacked Carbon-fiber Leg | -6/Factory | Hacked Arm. Leg | -4/Factory | Hacked Myomer Leg | -4/Factory | Hacked Railgun | -4/Factory | Hacked Lrn. Missile Launcher | -4/Factory | Hacked Lrn. Proton Cannon | -4/Factory | Hacked Coil Gun | -4/Factory | Hacked Antimatter Reactor | -4/Factory | Hacked Biometal Leg | -3/Research | Hacked Adv. VSS Leg | -3/Protoforge | Hacked Nova Cannon | -3/Protoforge | Hacked Alien Tech Used ----------------- Integrated Dissipator Phase Redirector Phase Armor Terrabomb Achievements -------------- None Challenges ------------ None Game ------ Seed PlatingCorruptionMount Manual? 0 Play Time 05:35:34 Cumulative 545.2 hours Start 2026.08.26 @ 17:26:22 End 2026.08.28 @ 14:57:52 Sessions 5 Manual Loads 0 Difficulty Rogue Special Mode None Game No. 304 Rogue 304 Adventurer 0 Explorer 0 Win Type - Total 27 Types 14/1/4/2/1/0/1/2/1/1 Lore% 94 Gallery% 84 Achievement% 77 Wizard Run 0 Options --------- Layout 1 ASCII 0 Keyboard 0 Movement Mouse Keybinds 0 Fullscreen 2 Font 32/SmallcapsGlow Map View 50x35 Zoom Use 0% Tactical HUD 1 Map Filters NONE Filters NONE Steam 1 RUN: fda56400-8c89-447d-8b90-53ad6e8e6c04